Workbook

Sheet Sheet2
B1: 典 诚 员 工
A2: 序号 | B2: 姓名 | C2: 计时工 | D2: 电杆工资 | E2: 带班 | F2: 实发工资 | G2: 电话号码
A3: 1 | B3: 余新宇 | F3: 4500 | G3: 13789319688
A4: 2 | B4: 刘国英 | F4: 6500 | G4: 15987516999
A5: 3 | B5: 余布江 | F5: 5800 | G5: 13574063666
A6: 4 | B6: 谢慧 | F6: 1800 | G6: 15273263555
A7: 5 | B7: 余典 | F7: 5000 | G7: 13975220666
A8: 6 | B8: 郭坚 | D8: 5200 | F8: 5200 | G8: 18173212287
A9: 7 | B9: 彭军民 | F9: 5000 | G9: 18975272968
A10: 8 | B10: 田福珍 | F10: 3200 | G10: 13973263650
A11: 9 | B11: 柳习军 | C11: 300 | D11: 5377 | F11: 5677 | G11: 15073203762
A12: 10 | B12: 李新建 | F12: 5480 | G12: 13467913657

Sheet 20-4
A1: 工资表
A2: 单位：湘潭典诚 | H2: 月份：2020.04
A3: 序号 | B3: 姓名 | C3: 基本工资 | D3: 应扣工资 | G3: 加班补助 | H3: 实发工资 | I3: 备注
D4: 缺勤 | E4: 事假 | F4: 病假
A5: 1 | B5: 刘国英 | C5: 3500 | H5: =C5 -> 3500
A6: 2 | B6: 彭中达 | C6: 2800 | H6: 2800
A7: 3 | B7: 许德芝 | C7: 3020 | H7: 3020
A8: 4 | B8: 黄富军 | C8: 3020 | H8: 3020
A9: 5 | B9: 严正良 | C9: 3020 | H9: 3020
A10: 6 | B10: 严正明 | C10: 3020 | H10: 3020
A11: 7 | B11: 邓达清 | C11: 3020 | H11: 3020
B18: 合计 | C18: =SUM(C5:C16) -> 21400 | H18: =SUM(H5:H16) -> 21400
G23: 制表：谢慧

Sheet 20-5
A1: 工资表
A2: 单位：湘潭典诚 | H2: 月份：2020.05
A3: 序号 | B3: 姓名 | C3: 基本工资 | D3: 应扣工资 | G3: 加班补助 | H3: 实发工资 | I3: 备注
D4: 缺勤 | E4: 事假 | F4: 病假
A5: 1 | B5: 刘国英 | C5: 3500 | H5: =C5 -> 3500
A6: 2 | H6: 0
A7: 3 | H7: 0
A8: 4 | H8: 0
A9: 5 | H9: 0
A10: 6 | H10: 0
A11: 7 | H11: 0
B18: 合计 | C18: =SUM(C5:C16) -> 3500 | H18: =SUM(H5:H16) -> 3500
G23: 制表：谢慧

Sheet 20-6
A1: 工资表
A2: 单位：湘潭典诚 | H2: 月份：2020.06
A3: 序号 | B3: 姓名 | C3: 基本工资 | D3: 应扣工资 | G3: 加班补助 | H3: 实发工资 | I3: 备注
D4: 缺勤 | E4: 事假 | F4: 病假
A5: 1 | B5: 刘国英 | C5: 3500 | H5: =C5 -> 3500
A6: 2 | H6: 0
A7: 3 | H7: 0
A8: 4 | H8: 0
A9: 5 | H9: 0
A10: 6 | H10: 0
A11: 7 | H11: 0
B18: 合计 | C18: =SUM(C5:C16) -> 3500 | H18: =SUM(H5:H16) -> 3500
G23: 制表：谢慧

Sheet 20-7
A1: 工资表
A2: 单位：湘潭典诚 | H2: 月份：2020.07
A3: 序号 | B3: 姓名 | C3: 基本工资 | D3: 应扣工资 | G3: 加班补助 | H3: 实发工资 | I3: 备注
D4: 缺勤 | E4: 事假 | F4: 病假
A5: 1 | B5: 余新宇 | C5: 4500 | H5: =C5 -> 4500
A6: 2 | B6: 刘国英 | C6: 4500 | H6: 4500
A7: 3 | B7: 余布江 | C7: 4200 | H7: 4200
A8: 4 | B8: 谢慧 | C8: 1800 | H8: 1800 | K8: 190*15 | L8: 46 | M8: 115 | N8: =L8*M8 -> 5290
A9: 5 | B9: 余典 | C9: 4200 | H9: 4200 | K9: 150*8 | L9: 37 | M9: 40 | N9: 1480
A10: 6 | B10: 郭坚 | C10: 3616.5 | H10: 3616.5 | K10: 190*10 | L10: 52 | M10: 52 | N10: 2704
A11: 7 | B11: 彭军民 | C11: 3616.5 | H11: 3616.5 | K11: 190*12 | L11: 62 | M11: 62 | N11: 3844
A12: 8 | B12: 柳习军 | C12: 3616.5 | H12: 3616.5 | J12: 接 | K12: 190*12 | L12: 9 | M12: 82 | N12: 738
A13: 9 | B13: 李新建 | C13: 3616.5 | H13: 3616.5 | K13: 230*12 | L13: 5 | M13: 82 | N13: 410
N14: =SUM(N8:N13) -> 14466
L15: 4 | N15: =N14/L15 -> 3616.5
B18: 合计 | C18: =SUM(C5:C17) -> 33666 | H18: =SUM(H5:H17) -> 33666
G23: 制表：谢慧

Sheet 20-8
A1: 工资表
A2: 单位：湘潭典诚 | H2: 月份：2020.08
A3: 序号 | B3: 姓名 | C3: 基本工资 | D3: 应扣工资 | G3: 加班补助 | H3: 实发工资 | I3: 备注
D4: 缺勤 | E4: 事假 | F4: 病假
A5: 1 | B5: 余新宇 | C5: 4500 | H5: =C5 -> 4500
A6: 2 | B6: 刘国英 | C6: 4500 | H6: 4500
A7: 3 | B7: 余布江 | C7: 4200 | H7: 4200
A8: 4 | B8: 谢慧 | C8: 1800 | H8: 1800 | K8: 190*15 | L8: 25 | M8: 115 | N8: =L8*M8 -> 2875
A9: 5 | B9: 余典 | C9: 4200 | H9: 4200 | K9: 150*8 | L9: 66 | M9: 40 | N9: 2640
A10: 6 | B10: 郭坚 | C10: 2752 | H10: 2752 | K10: 190*10 | L10: 72 | M10: 52 | N10: 3744
A11: 7 | B11: 彭军民 | C11: 2752 | H11: 2752 | K11: 190*12 | L11: 15 | M11: 62 | N11: 930
A12: 8 | B12: 柳习军 | C12: 2752 | H12: 2752 | J12: 接 | K12: 190*12 | L12: 5 | M12: 82 | N12: 410
A13: 9 | B13: 李新建 | C13: 2752 | H13: 2752 | K13: 230*12 | L13: 5 | M13: 82 | N13: 410
N14: =SUM(N8:N13) -> 11009
L15: 4 | N15: =N14/L15 -> 2752.25
B18: 合计 | C18: =SUM(C5:C17) -> 30208 | H18: =SUM(H5:H17) -> 30208
G23: 制表：谢慧

Sheet 20-9
A1: 工资表
A2: 单位：湘潭典诚 | H2: 月份：2020.09
A3: 序号 | B3: 姓名 | C3: 基本工资 | D3: 应扣工资 | G3: 加班补助 | H3: 实发工资 | I3: 备注
D4: 缺勤 | E4: 事假 | F4: 病假
A5: 1 | B5: 余新宇 | C5: 4500 | H5: =C5 -> 4500
A6: 2 | B6: 刘国英 | C6: 4500 | H6: 4500
A7: 3 | B7: 余布江 | C7: 4200 | H7: 4200
A8: 4 | B8: 谢慧 | C8: 1800 | H8: 1800 | K8: 190*15 | L8: 25 | M8: 115 | N8: =L8*M8 -> 2875 | R8: 190*15 | S8: 20 | T8: 115 | U8: =S8*T8 -> 2300
A9: 5 | B9: 余典 | C9: 4200 | H9: 4200 | K9: 150*8 | L9: 66 | M9: 40 | N9: 2640 | R9: 150*8 | S9: 35 | T9: 40 | U9: 1400
A10: 6 | B10: 郭坚 | C10: 4033.5 | H10: 4033.5 | K10: 190*10 | L10: 72 | M10: 52 | N10: 3744 | R10: 190*10 | S10: 115 | T10: 52 | U10: 5980
A11: 7 | B11: 彭军民 | C11: 4033.5 | H11: 4033.5 | K11: 190*12 | L11: 15 | M11: 62 | N11: 930 | R11: 190*12 | S11: 75 | T11: 62 | U11: 4650
A12: 8 | B12: 汤新河 | C12: 4033.5 | H12: 4033.5 | J12: 接 | K12: 190*12 | L12: 5 | M12: 82 | N12: 410 | Q12: 接 | R12: 190*12 | S12: 10 | T12: 82 | U12: 820
A13: 9 | B13: 李新建 | C13: 4033.5 | H13: 4033.5 | K13: 230*12 | L13: 5 | M13: 82 | N13: 410 | R13: 230*12 | S13: 12 | T13: 82 | U13: 984
N14: =SUM(N8:N13) -> 11009 | U14: =SUM(U8:U13) -> 16134
L15: 4 | N15: =N14/L15 -> 2752.25 | S15: 4 | U15: =U14/S15 -> 4033.5
B18: 合计 | C18: =SUM(C5:C17) -> 35334 | H18: =SUM(H5:H17) -> 35334
G23: 制表：谢慧

Sheet 20-10
A1: 工资表
A2: 单位：湘潭典诚 | H2: 月份：2020.10
A3: 序号 | B3: 姓名 | C3: 基本工资 | D3: 应扣工资 | G3: 加班补助 | H3: 实发工资 | I3: 备注
D4: 缺勤 | E4: 事假 | F4: 病假
A5: 1 | B5: 余新宇 | C5: 4500 | H5: =C5 -> 4500
A6: 2 | B6: 刘国英 | C6: 4500 | H6: 4500
A7: 3 | B7: 余布江 | C7: 4200 | H7: 4200 | Y7: 数量 | Z7: 单价 | AA7: 金额
A8: 4 | B8: 谢慧 | C8: 1800 | H8: 1800 | K8: 190*15 | L8: 25 | M8: 115 | N8: =L8*M8 -> 2875 | R8: 190*15 | S8: 20 | T8: 115 | U8: =S8*T8 -> 2300 | X8: 150-7 | Y8: 468 | Z8: 28 | AA8: =Y8*Z8 -> 13104
A9: 5 | B9: 余典 | C9: 4200 | H9: 4200 | K9: 150*8 | L9: 66 | M9: 40 | N9: 2640 | R9: 150*8 | S9: 35 | T9: 40 | U9: 1400 | X9: 150-8 | Y9: 185 | Z9: 33 | AA9: =Y9*Z9 -> 6105
A10: 6 | B10: 郭坚 | C10: 4802 | H10: 4802 | K10: 190*10 | L10: 72 | M10: 52 | N10: 3744 | R10: 190*10 | S10: 115 | T10: 52 | U10: 5980 | AA10: =SUM(AA8:AA9) -> 19209
A11: 7 | B11: 彭军民 | C11: 4802 | H11: 4802 | K11: 190*12 | L11: 15 | M11: 62 | N11: 930 | R11: 190*12 | S11: 75 | T11: 62 | U11: 4650 | AA11: 4
A12: 8 | B12: 汤新河 | C12: 4802 | H12: 4802 | J12: 接 | K12: 190*12 | L12: 5 | M12: 82 | N12: 410 | Q12: 接 | R12: 190*12 | S12: 10 | T12: 82 | U12: 820 | AA12: =AA10/AA11 -> 4802.25
A13: 9 | B13: 李新建 | C13: 4802 | H13: 4802 | K13: 230*12 | L13: 5 | M13: 82 | N13: 410 | R13: 230*12 | S13: 12 | T13: 82 | U13: 984
N14: =SUM(N8:N13) -> 11009 | U14: =SUM(U8:U13) -> 16134
L15: 4 | N15: =N14/L15 -> 2752.25 | S15: 4 | U15: =U14/S15 -> 4033.5
B18: 合计 | C18: 38408 | H18: 38408
G23: 制表：谢慧

Sheet 2020-11
A1: 工资表
A2: 单位：湘潭典诚 | H2: 月份：2020.11
A3: 序号 | B3: 姓名 | C3: 基本工资 | D3: 应扣工资 | G3: 加班补助 | H3: 实发工资 | I3: 备注
D4: 缺勤 | E4: 事假 | F4: 病假
A5: 1 | B5: 余新宇 | C5: 4500 | H5: =C5 -> 4500
A6: 2 | B6: 刘国英 | C6: 4500 | H6: 4500
A7: 3 | B7: 余布江 | C7: 4200 | H7: 4200 | Y7: 数量 | Z7: 单价 | AA7: 金额
A8: 4 | B8: 谢慧 | C8: 1800 | H8: 1800 | K8: 190*15 | L8: 25 | M8: 115 | N8: =L8*M8 -> 2875 | R8: 190*15 | S8: 20 | T8: 115 | U8: =S8*T8 -> 2300 | X8: 190*10 | Y8: 118 | Z8: 52 | AA8: =Y8*Z8 -> 6136
A9: 5 | B9: 余典 | C9: 4200 | H9: 4200 | K9: 150*8 | L9: 66 | M9: 40 | N9: 2640 | R9: 150*8 | S9: 35 | T9: 40 | U9: 1400 | X9: 190*12 | Y9: 132 | Z9: 82 | AA9: =Y9*Z9 -> 10824
A10: 6 | B10: 郭坚 | C10: 4240 | H10: 4240 | K10: 190*10 | L10: 72 | M10: 52 | N10: 3744 | R10: 190*10 | S10: 115 | T10: 52 | U10: 5980 | AA10: =SUM(AA8:AA9) -> 16960
A11: 7 | B11: 彭军民 | C11: 4240 | H11: 4240 | K11: 190*12 | L11: 15 | M11: 62 | N11: 930 | R11: 190*12 | S11: 75 | T11: 62 | U11: 4650 | AA11: 4
A12: 8 | B12: 汤新河 | C12: 4240 | H12: 4240 | J12: 接 | K12: 190*12 | L12: 5 | M12: 82 | N12: 410 | Q12: 接 | R12: 190*12 | S12: 10 | T12: 82 | U12: 820 | AA12: =AA10/AA11 -> 4240
A13: 9 | B13: 李新建 | C13: 4240 | H13: 4240 | K13: 230*12 | L13: 5 | M13: 82 | N13: 410 | R13: 230*12 | S13: 12 | T13: 82 | U13: 984
N14: =SUM(N8:N13) -> 11009 | U14: =SUM(U8:U13) -> 16134
L15: 4 | N15: =N14/L15 -> 2752.25 | S15: 4 | U15: =U14/S15 -> 4033.5
B18: 合计 | C18: =SUM(C5:C17) -> 36160 | H18: =SUM(H5:H17) -> 36160
G23: 制表：谢慧

Sheet 2020-12
A1: 工资表
A2: 单位：湘潭典诚 | H2: 月份：2020.12
A3: 序号 | B3: 姓名 | C3: 基本工资 | D3: 应扣工资 | G3: 加班补助 | H3: 实发工资 | I3: 备注
D4: 缺勤 | E4: 事假 | F4: 病假
A5: 1 | B5: 余新宇 | C5: 4500 | H5: =C5 -> 4500
A6: 2 | B6: 刘国英 | C6: 4500 | H6: 4500
A7: 3 | B7: 余布江 | C7: 4200 | H7: 4200 | Y7: 数量 | Z7: 单价 | AA7: 金额
A8: 4 | B8: 谢慧 | C8: 1800 | H8: 1800 | K8: 190*15 | L8: 25 | M8: 115 | N8: =L8*M8 -> 2875 | R8: 190*15 | S8: 20 | T8: 115 | U8: =S8*T8 -> 2300 | X8: 190*10 | Y8: 118 | Z8: 122 | AA8: =Y8*Z8 -> 14396
A9: 5 | B9: 余典 | C9: 4200 | H9: 4200 | K9: 150*8 | L9: 66 | M9: 40 | N9: 2640 | R9: 150*8 | S9: 35 | T9: 40 | U9: 1400 | X9: 190*12 | Y9: 0 | Z9: 82 | AA9: =Y9*Z9 -> 0
A10: 6 | B10: 郭坚 | C10: 3599 | H10: 3599 | K10: 190*10 | L10: 72 | M10: 52 | N10: 3744 | R10: 190*10 | S10: 115 | T10: 52 | U10: 5980 | AA10: =SUM(AA8:AA9) -> 14396
A11: 7 | B11: 彭军民 | C11: 3599 | H11: 3599 | K11: 190*12 | L11: 15 | M11: 62 | N11: 930 | R11: 190*12 | S11: 75 | T11: 62 | U11: 4650 | AA11: 4
A12: 8 | B12: 汤新河 | C12: 3599 | H12: 3599 | J12: 接 | K12: 190*12 | L12: 5 | M12: 82 | N12: 410 | Q12: 接 | R12: 190*12 | S12: 10 | T12: 82 | U12: 820 | AA12: =AA10/AA11 -> 3599
A13: 9 | B13: 李新建 | C13: 3599 | H13: 3599 | K13: 230*12 | L13: 5 | M13: 82 | N13: 410 | R13: 230*12 | S13: 12 | T13: 82 | U13: 984
N14: =SUM(N8:N13) -> 11009 | U14: =SUM(U8:U13) -> 16134
L15: 4 | N15: =N14/L15 -> 2752.25 | S15: 4 | U15: =U14/S15 -> 4033.5
B18: 合计 | C18: =SUM(C5:C17) -> 33596 | H18: =SUM(H5:H17) -> 33596
G23: 制表：谢慧

Sheet 2021-01
A1: 工资表
A2: 单位：湘潭典诚 | H2: 月份：2021.1
A3: 序号 | B3: 姓名 | C3: 基本工资 | D3: 应扣工资 | G3: 加班补助 | H3: 实发工资 | I3: 备注
D4: 缺勤 | E4: 事假 | F4: 病假
A5: 1 | B5: 余新宇 | C5: 4500 | H5: =C5 -> 4500
A6: 2 | B6: 刘国英 | C6: 4500 | H6: 4500 | Y6: 数量 | Z6: 单价 | AA6: 金额
A7: 3 | B7: 余布江 | C7: 4200 | H7: 4200 | X7: 150*8 | Y7: 240 | Z7: 33 | AA7: =Y7*Z7 -> 7920
A8: 4 | B8: 谢慧 | C8: 1800 | H8: 1800 | K8: 190*15 | L8: 25 | M8: 115 | N8: =L8*M8 -> 2875 | R8: 190*15 | S8: 20 | T8: 115 | U8: =S8*T8 -> 2300 | X8: 190*10 | Y8: 82 | Z8: 122 | AA8: =Y8*Z8 -> 10004
A9: 5 | B9: 余典 | C9: 4200 | H9: 4200 | K9: 150*8 | L9: 66 | M9: 40 | N9: 2640 | R9: 150*8 | S9: 35 | T9: 40 | U9: 1400 | X9: 190*12 | Y9: 0 | Z9: 82 | AA9: =Y9*Z9 -> 0
A10: 6 | B10: 郭坚 | C10: 4480 | H10: 4480 | K10: 190*10 | L10: 72 | M10: 52 | N10: 3744 | R10: 190*10 | S10: 115 | T10: 52 | U10: 5980 | AA10: =SUM(AA7:AA9) -> 17924
A11: 7 | B11: 彭军民 | C11: 4480 | H11: 4480 | K11: 190*12 | L11: 15 | M11: 62 | N11: 930 | R11: 190*12 | S11: 75 | T11: 62 | U11: 4650 | AA11: 4
A12: 8 | B12: 汤新河 | C12: 4480 | H12: 4480 | J12: 接 | K12: 190*12 | L12: 5 | M12: 82 | N12: 410 | Q12: 接 | R12: 190*12 | S12: 10 | T12: 82 | U12: 820 | AA12: =AA10/AA11 -> 4481
A13: 9 | B13: 李新建 | C13: 4480 | H13: 4480 | K13: 230*12 | L13: 5 | M13: 82 | N13: 410 | R13: 230*12 | S13: 12 | T13: 82 | U13: 984
N14: =SUM(N8:N13) -> 11009 | U14: =SUM(U8:U13) -> 16134
L15: 4 | N15: =N14/L15 -> 2752.25 | S15: 4 | U15: =U14/S15 -> 4033.5
B18: 合计 | C18: =SUM(C5:C17) -> 37120 | H18: =SUM(H5:H17) -> 37120
G23: 制表：谢慧

Sheet 2021-02
A1: 工资表
A2: 单位：湘潭典诚 | H2: 月份：2021.2
A3: 序号 | B3: 姓名 | C3: 基本工资 | D3: 应扣工资 | G3: 加班补助 | H3: 实发工资 | I3: 备注
D4: 缺勤 | E4: 事假 | F4: 病假
A5: 1 | B5: 余新宇 | C5: 4500 | H5: =C5 -> 4500
A6: 2 | B6: 刘国英 | C6: 4500 | H6: 4500 | Y6: 数量 | Z6: 单价 | AA6: 金额
A7: 3 | B7: 余布江 | C7: 4200 | H7: 4200 | X7: 190*15 | Y7: 46 | Z7: 115 | AA7: =Y7*Z7 -> 5290
A8: 4 | B8: 谢慧 | C8: 1800 | H8: 1800 | K8: 190*15 | L8: 25 | M8: 115 | N8: =L8*M8 -> 2875 | R8: 190*15 | S8: 20 | T8: 115 | U8: =S8*T8 -> 2300 | X8: 150*8 | Y8: 37 | Z8: 40 | AA8: 1480
A9: 5 | B9: 余典 | C9: 4200 | H9: 4200 | K9: 150*8 | L9: 66 | M9: 40 | N9: 2640 | R9: 150*8 | S9: 35 | T9: 40 | U9: 1400 | X9: 190*10 | Y9: 52 | Z9: 52 | AA9: 2704
A10: 6 | B10: 郭坚 | C10: 4354 | H10: 4354 | K10: 190*10 | L10: 72 | M10: 52 | N10: 3744 | R10: 190*10 | S10: 115 | T10: 52 | U10: 5980 | X10: 190*12 | Y10: 62 | Z10: 62 | AA10: 3844
A11: 7 | B11: 彭军民 | C11: 4354 | H11: 4354 | K11: 190*12 | L11: 15 | M11: 62 | N11: 930 | R11: 190*12 | S11: 75 | T11: 62 | U11: 4650 | X11: 190*12 | Y11: 45 | Z11: 82 | AA11: 3690
A12: 8 | B12: 汤新河 | C12: 4354 | H12: 4354 | J12: 接 | K12: 190*12 | L12: 5 | M12: 82 | N12: 410 | Q12: 接 | R12: 190*12 | S12: 10 | T12: 82 | U12: 820 | X12: 230*12 | Y12: 5 | Z12: 82 | AA12: 410
A13: 9 | B13: 李新建 | C13: 4354 | H13: 4354 | K13: 230*12 | L13: 5 | M13: 82 | N13: 410 | R13: 230*12 | S13: 12 | T13: 82 | U13: 984 | AA13: =SUM(AA7:AA12) -> 17418
N14: =SUM(N8:N13) -> 11009 | U14: =SUM(U8:U13) -> 16134 | Y14: 4 | AA14: =AA13/Y14 -> 4354.5
L15: 4 | N15: =N14/L15 -> 2752.25 | S15: 4 | U15: =U14/S15 -> 4033.5
B18: 合计 | C18: =SUM(C5:C17) -> 36616 | H18: =SUM(H5:H17) -> 36616
G23: 制表：谢慧

Sheet 2021-03
A1: 工资表
A2: 单位：湘潭典诚 | H2: 月份：2021.3
A3: 序号 | B3: 姓名 | C3: 基本工资 | D3: 应扣工资 | G3: 加班补助 | H3: 实发工资 | I3: 备注
D4: 缺勤 | E4: 事假 | F4: 病假
A5: 1 | B5: 余新宇 | C5: 4500 | H5: =C5 -> 4500
A6: 2 | B6: 刘国英 | C6: 4500 | H6: 4500 | Y6: 数量 | Z6: 单价 | AA6: 金额
A7: 3 | B7: 余布江 | C7: 4200 | H7: 4200 | X7: 190*15 | Y7: =1+2+1+8+28 -> 40 | Z7: 115 | AA7: =Y7*Z7 -> 4600
A8: 4 | B8: 谢慧 | C8: 1800 | H8: 1800 | K8: 190*15 | L8: 25 | M8: 115 | N8: =L8*M8 -> 2875 | R8: 190*15 | S8: 20 | T8: 115 | U8: =S8*T8 -> 2300 | X8: 150*8 | Y8: =16+3+11 -> 30 | Z8: 40 | AA8: 1200
A9: 5 | B9: 余典 | C9: 4200 | H9: 4200 | K9: 150*8 | L9: 66 | M9: 40 | N9: 2640 | R9: 150*8 | S9: 35 | T9: 40 | U9: 1400 | X9: 190*10 | Y9: =2+9 -> 11 | Z9: 52 | AA9: 572
A10: 6 | B10: 郭坚 | C10: 4166 | H10: 4166 | K10: 190*10 | L10: 72 | M10: 52 | N10: 3744 | R10: 190*10 | S10: 115 | T10: 52 | U10: 5980 | X10: 190*12 | Y10: =12+18+14+10+40 -> 94 | Z10: 62 | AA10: 5828
A11: 7 | B11: 彭军民 | C11: 4166 | H11: 4166 | K11: 190*12 | L11: 15 | M11: 62 | N11: 930 | R11: 190*12 | S11: 75 | T11: 62 | U11: 4650 | X11: 190*12 | Y11: =47 -> 47 | Z11: 82 | AA11: 3854
A12: 8 | B12: 汤新河 | C12: 4166 | H12: 4166 | J12: 接 | K12: 190*12 | L12: 5 | M12: 82 | N12: 410 | Q12: 接 | R12: 190*12 | S12: 10 | T12: 82 | U12: 820 | X12: 230*12 | Y12: 5 | Z12: 82 | AA12: 410
A13: 9 | B13: 李新建 | C13: 4166 | H13: 4166 | K13: 230*12 | L13: 5 | M13: 82 | N13: 410 | R13: 230*12 | S13: 12 | T13: 82 | U13: 984 | AA13: =SUM(AA7:AA12) -> 16464
N14: =SUM(N8:N13) -> 11009 | U14: =SUM(U8:U13) -> 16134 | Y14: 4 | AA14: =AA13/Y14 -> 4116
L15: 4 | N15: =N14/L15 -> 2752.25 | S15: 4 | U15: =U14/S15 -> 4033.5
B18: 合计 | C18: =SUM(C5:C17) -> 35864 | H18: =SUM(H5:H17) -> 35864
G23: 制表：谢慧

Sheet 2021-04
A1: 工资表
A2: 单位：湘潭典诚 | H2: 月份：2021.4
A3: 序号 | B3: 姓名 | C3: 基本工资 | D3: 应扣工资 | G3: 加班补助 | H3: 实发工资 | I3: 备注
D4: 缺勤 | E4: 事假 | F4: 病假
A5: 1 | B5: 余新宇 | C5: 4500 | H5: =C5 -> 4500
A6: 2 | B6: 刘国英 | C6: 4500 | H6: =C6 -> 4500 | Y6: 数量 | Z6: 单价 | AA6: 金额
A7: 3 | B7: 谢慧 | C7: 1800 | H7: =C7 -> 1800 | X7: 190*15 | Y7: 10 | Z7: 115 | AA7: =Y7*Z7 -> 1150
A8: 4 | B8: 余典 | C8: 4200 | H8: 4200 | K8: 190*15 | L8: 25 | M8: 115 | N8: =L8*M8 -> 2875 | R8: 190*15 | S8: 20 | T8: 115 | U8: =S8*T8 -> 2300 | X8: 150*8 | Y8: 20 | Z8: 40 | AA8: 800
A9: 5 | B9: 郭坚 | C9: 4405 | H9: 4405 | K9: 150*8 | L9: 66 | M9: 40 | N9: 2640 | R9: 150*8 | S9: 35 | T9: 40 | U9: 1400 | X9: 190*10 | Y9: 250 | Z9: 52 | AA9: 13000
A10: 6 | B10: 彭军民 | C10: 4405 | H10: 4405 | K10: 190*10 | L10: 72 | M10: 52 | N10: 3744 | R10: 190*10 | S10: 115 | T10: 52 | U10: 5980 | X10: 190*12 | Y10: 14 | Z10: 62 | AA10: 868
A11: 7 | B11: 汤新河 | C11: 4405 | H11: 4405 | K11: 190*12 | L11: 15 | M11: 62 | N11: 930 | R11: 190*12 | S11: 75 | T11: 62 | U11: 4650 | X11: 190*12 | Y11: 17 | Z11: 82 | AA11: 1394
A12: 8 | B12: 李新建 | C12: 4405 | H12: 4405 | J12: 接 | K12: 190*12 | L12: 5 | M12: 82 | N12: 410 | Q12: 接 | R12: 190*12 | S12: 10 | T12: 82 | U12: 820 | X12: 230*12 | Y12: 5 | Z12: 82 | AA12: 410
K13: 230*12 | L13: 5 | M13: 82 | N13: 410 | R13: 230*12 | S13: 12 | T13: 82 | U13: 984 | AA13: =SUM(AA7:AA12) -> 17622
N14: =SUM(N8:N13) -> 11009 | U14: =SUM(U8:U13) -> 16134 | Y14: 4 | AA14: =AA13/Y14 -> 4405.5
L15: 4 | N15: =N14/L15 -> 2752.25 | S15: 4 | U15: =U14/S15 -> 4033.5
B18: 合计 | C18: =SUM(C5:C17) -> 32620 | H18: =SUM(H5:H17) -> 32620
G23: 制表：谢慧

Sheet 2021-05
A1: 工资表
A2: 单位：湘潭典诚 | H2: 月份：2021.5
A3: 序号 | B3: 姓名 | C3: 基本工资 | D3: 应扣工资 | G3: 加班补助 | H3: 实发工资 | I3: 备注
D4: 缺勤 | E4: 事假 | F4: 病假
A5: 1 | B5: 余新宇 | C5: 4500 | H5: =C5 -> 4500
A6: 2 | B6: 刘国英 | C6: 4500 | H6: 4500 | Y6: 数量 | Z6: 单价 | AA6: 金额
A7: 3 | B7: 谢慧 | C7: 1800 | H7: 1800 | X7: 190*15 | Y7: 30 | Z7: 115 | AA7: =Y7*Z7 -> 3450
A8: 4 | B8: 余典 | C8: 4200 | H8: 4200 | K8: 190*15 | L8: 25 | M8: 115 | N8: =L8*M8 -> 2875 | R8: 190*15 | S8: 20 | T8: 115 | U8: =S8*T8 -> 2300 | X8: 150*8 | Y8: 10 | Z8: 40 | AA8: 400
A9: 5 | B9: 郭坚 | C9: 4890 | H9: 4890 | K9: 150*8 | L9: 66 | M9: 40 | N9: 2640 | R9: 150*8 | S9: 35 | T9: 40 | U9: 1400 | X9: 190*10 | Y9: 120 | Z9: 52 | AA9: 6240
A10: 6 | B10: 彭军民 | C10: 4890 | H10: 4890 | K10: 190*10 | L10: 72 | M10: 52 | N10: 3744 | R10: 190*10 | S10: 115 | T10: 52 | U10: 5980 | X10: 190*12 | Y10: 80 | Z10: 62 | AA10: 4960
A11: 7 | B11: 汤新河 | C11: 4890 | H11: 4890 | K11: 190*12 | L11: 15 | M11: 62 | N11: 930 | R11: 190*12 | S11: 75 | T11: 62 | U11: 4650 | X11: 190*12 | Y11: 30 | Z11: 82 | AA11: 2460
A12: 8 | B12: 李新建 | C12: 4890 | H12: 4890 | J12: 接 | K12: 190*12 | L12: 5 | M12: 82 | N12: 410 | Q12: 接 | R12: 190*12 | S12: 10 | T12: 82 | U12: 820 | X12: 230*12 | Y12: 25 | Z12: 82 | AA12: 2050
K13: 230*12 | L13: 5 | M13: 82 | N13: 410 | R13: 230*12 | S13: 12 | T13: 82 | U13: 984 | AA13: =SUM(AA7:AA12) -> 19560
N14: =SUM(N8:N13) -> 11009 | U14: =SUM(U8:U13) -> 16134 | Y14: 4 | AA14: =AA13/Y14 -> 4890
L15: 4 | N15: =N14/L15 -> 2752.25 | S15: 4 | U15: =U14/S15 -> 4033.5
B18: 合计 | C18: =SUM(C5:C17) -> 34560 | H18: =SUM(H5:H17) -> 34560
G23: 制表：谢慧

Sheet 2021-06
A1: 工资表
A2: 单位：湘潭典诚 | H2: 月份：2021.6
A3: 序号 | B3: 姓名 | C3: 基本工资 | D3: 应扣工资 | G3: 加班补助 | H3: 实发工资 | I3: 备注
D4: 缺勤 | E4: 事假 | F4: 病假
A5: 1 | B5: 余新宇 | C5: 4500 | H5: =C5 -> 4500
A6: 2 | B6: 刘国英 | C6: 4500 | H6: 4500 | Y6: 数量 | Z6: 单价 | AA6: 金额
A7: 3 | B7: 谢慧 | C7: 1800 | H7: 1800 | X7: 190*15 | Y7: =80 -> 80 | Z7: 115 | AA7: =Y7*Z7 -> 9200
A8: 4 | B8: 余典 | C8: 4200 | H8: 4200 | K8: 190*15 | L8: 25 | M8: 115 | N8: =L8*M8 -> 2875 | R8: 190*15 | S8: 20 | T8: 115 | U8: =S8*T8 -> 2300 | X8: 150*8 | Y8: =12 -> 12 | Z8: 40 | AA8: =Y8*Z8 -> 480
A9: 5 | B9: 郭坚 | C9: 4940 | H9: 4940 | K9: 150*8 | L9: 66 | M9: 40 | N9: 2640 | R9: 150*8 | S9: 35 | T9: 40 | U9: 1400 | X9: 190*10 | Y9: =72 -> 72 | Z9: 52 | AA9: 3744
A10: 6 | B10: 彭军民 | C10: 4940 | H10: 4940 | K10: 190*10 | L10: 72 | M10: 52 | N10: 3744 | R10: 190*10 | S10: 115 | T10: 52 | U10: 5980 | X10: 190*12 | Y10: =20+27 -> 47 | Z10: 62 | AA10: 2914
A11: 7 | B11: 汤新河 | C11: 4940 | H11: 4940 | K11: 190*12 | L11: 15 | M11: 62 | N11: 930 | R11: 190*12 | S11: 75 | T11: 62 | U11: 4650 | X11: 190*12 | Y11: 30 | Z11: 82 | AA11: 2460
A12: 8 | B12: 李新建 | C12: 4940 | H12: 4940 | J12: 接 | K12: 190*12 | L12: 5 | M12: 82 | N12: 410 | Q12: 接 | R12: 190*12 | S12: 10 | T12: 82 | U12: 820 | X12: 230*12 | Y12: =1 -> 1 | Z12: 82 | AA12: 82
K13: 230*12 | L13: 5 | M13: 82 | N13: 410 | R13: 230*12 | S13: 12 | T13: 82 | U13: 984 | X13: 230*15 | Y13: =1+1 -> 2 | Z13: 115 | AA13: 230
N14: =SUM(N8:N13) -> 11009 | U14: =SUM(U8:U13) -> 16134 | X14: 230*18 | Y14: =1 -> 1 | Z14: 135 | AA14: 135
L15: 4 | N15: =N14/L15 -> 2752.25 | S15: 4 | U15: =U14/S15 -> 4033.5 | X15: 190*18 | Y15: =4 -> 4 | Z15: 130 | AA15: 520
AA16: =SUM(AA7:AA15) -> 19765
AA17: 4
B18: 合计 | C18: =SUM(C5:C17) -> 34760 | H18: =SUM(H5:H17) -> 34760 | AA18: =AA16/AA17 -> 4941.25
G23: 制表：谢慧

Sheet 2021-07
A1: 工资表
A2: 单位：湘潭典诚 | H2: 月份：2021.7
A3: 序号 | B3: 姓名 | C3: 基本工资 | D3: 应扣工资 | G3: 加班补助 | H3: 实发工资 | I3: 备注
D4: 缺勤 | E4: 事假 | F4: 病假
A5: 1 | B5: 余新宇 | C5: 4500 | H5: =C5 -> 4500
A6: 2 | B6: 刘国英 | C6: 4500 | H6: 4500 | Y6: 数量 | Z6: 单价 | AA6: 金额
A7: 3 | B7: 谢慧 | C7: 1800 | H7: 1800 | X7: 190*15 | Z7: 115 | AA7: =Y7*Z7 -> 0
A8: 4 | B8: 余典 | C8: 4200 | H8: 4200 | K8: 190*15 | L8: 25 | M8: 115 | N8: =L8*M8 -> 2875 | R8: 190*15 | S8: 20 | T8: 115 | U8: =S8*T8 -> 2300 | X8: 150*8 | Y8: 593 | Z8: 40 | AA8: 23720
A9: 5 | B9: 郭坚 | C9: 5130 | H9: 5130 | K9: 150*8 | L9: 66 | M9: 40 | N9: 2640 | R9: 150*8 | S9: 35 | T9: 40 | U9: 1400 | X9: 190*10 | Z9: 52 | AA9: 0
A10: 6 | B10: 彭军民 | C10: 5130 | H10: 5130 | K10: 190*10 | L10: 72 | M10: 52 | N10: 3744 | R10: 190*10 | S10: 115 | T10: 52 | U10: 5980 | X10: 190*12 | Z10: 62 | AA10: 0
A11: 7 | B11: 汤新河 | C11: 5130 | H11: 5130 | K11: 190*12 | L11: 15 | M11: 62 | N11: 930 | R11: 190*12 | S11: 75 | T11: 62 | U11: 4650 | X11: 190*12 | Z11: 82 | AA11: 0
A12: 8 | B12: 李新建 | C12: 5130 | H12: 5130 | J12: 接 | K12: 190*12 | L12: 5 | M12: 82 | N12: 410 | Q12: 接 | R12: 190*12 | S12: 10 | T12: 82 | U12: 820 | X12: 230*12 | Z12: 82 | AA12: 0
K13: 230*12 | L13: 5 | M13: 82 | N13: 410 | R13: 230*12 | S13: 12 | T13: 82 | U13: 984 | X13: 230*15 | Z13: 115 | AA13: 0
N14: =SUM(N8:N13) -> 11009 | U14: =SUM(U8:U13) -> 16134 | X14: 230*18 | Z14: 135 | AA14: 0
L15: 4 | N15: =N14/L15 -> 2752.25 | S15: 4 | U15: =U14/S15 -> 4033.5 | X15: 190*18 | Z15: 130 | AA15: 0
AA16: =SUM(AA7:AA15) -> 23720
AA17: 4
B18: 合计 | C18: =SUM(C5:C17) -> 35520 | H18: =SUM(H5:H17) -> 35520 | AA18: =AA16/AA17 -> 5930
G23: 制表：谢慧

Sheet 2021-08
A1: 工资表
A2: 单位：湘潭典诚 | H2: 月份：2021.8
A3: 序号 | B3: 姓名 | C3: 基本工资 | D3: 应扣工资 | G3: 加班补助 | H3: 实发工资 | I3: 备注
D4: 缺勤 | E4: 事假 | F4: 病假
A5: 1 | B5: 余新宇 | C5: 4500 | H5: =C5 -> 4500
A6: 2 | B6: 刘国英 | C6: 4500 | H6: 4500 | Y6: 数量 | Z6: 单价 | AA6: 金额
A7: 3 | B7: 谢慧 | C7: 1800 | H7: 1800 | X7: 190*15 | Z7: 115 | AA7: =Y7*Z7 -> 0
A8: 4 | B8: 余典 | C8: 4200 | H8: 4200 | K8: 190*15 | L8: 25 | M8: 115 | N8: =L8*M8 -> 2875 | R8: 190*15 | S8: 20 | T8: 115 | U8: =S8*T8 -> 2300 | X8: 150*8 | Y8: 293 | Z8: 40 | AA8: 11720
A9: 5 | B9: 郭坚 | C9: 4903 | H9: 4903 | K9: 150*8 | L9: 66 | M9: 40 | N9: 2640 | R9: 150*8 | S9: 35 | T9: 40 | U9: 1400 | X9: 190*10 | Y9: 122 | Z9: 52 | AA9: 6344
A10: 6 | B10: 彭军民 | C10: 4903 | H10: 4903 | K10: 190*10 | L10: 72 | M10: 52 | N10: 3744 | R10: 190*10 | S10: 115 | T10: 52 | U10: 5980 | X10: 190*12 | Y10: 25 | Z10: 62 | AA10: 1550
A11: 7 | B11: 汤新河 | C11: 4903 | H11: 4903 | K11: 190*12 | L11: 15 | M11: 62 | N11: 930 | R11: 190*12 | S11: 75 | T11: 62 | U11: 4650 | X11: 190*12 | Z11: 82 | AA11: 0
A12: 8 | B12: 李新建 | C12: 4903 | H12: 4903 | J12: 接 | K12: 190*12 | L12: 5 | M12: 82 | N12: 410 | Q12: 接 | R12: 190*12 | S12: 10 | T12: 82 | U12: 820 | X12: 230*12 | Z12: 82 | AA12: 0
K13: 230*12 | L13: 5 | M13: 82 | N13: 410 | R13: 230*12 | S13: 12 | T13: 82 | U13: 984 | X13: 230*15 | Z13: 115 | AA13: 0
N14: =SUM(N8:N13) -> 11009 | U14: =SUM(U8:U13) -> 16134 | X14: 230*18 | Z14: 135 | AA14: 0
L15: 4 | N15: =N14/L15 -> 2752.25 | S15: 4 | U15: =U14/S15 -> 4033.5 | X15: 190*18 | Z15: 130 | AA15: 0
AA16: =SUM(AA7:AA15) -> 19614
AA17: 4
B18: 合计 | C18: =SUM(C5:C17) -> 34612 | H18: =SUM(H5:H17) -> 34612 | AA18: =AA16/AA17 -> 4903.5
G23: 制表：谢慧

Sheet 2021-09
A1: 工资表
A2: 单位：湘潭典诚 | H2: 月份：2021.9
A3: 序号 | B3: 姓名 | C3: 基本工资 | D3: 应扣工资 | G3: 加班补助 | H3: 实发工资 | I3: 备注
D4: 缺勤 | E4: 事假 | F4: 病假
A5: 1 | B5: 余新宇 | C5: 4500 | H5: =C5 -> 4500
A6: 2 | B6: 刘国英 | C6: 4500 | H6: 4500 | Y6: 数量 | Z6: 单价 | AA6: 金额
A7: 3 | B7: 谢慧 | C7: 1800 | H7: 1800 | X7: 190*15 | Z7: 115 | AA7: =Y7*Z7 -> 0
A8: 4 | B8: 余典 | C8: 4200 | H8: 4200 | K8: 190*15 | L8: 25 | M8: 115 | N8: =L8*M8 -> 2875 | R8: 190*15 | S8: 20 | T8: 115 | U8: =S8*T8 -> 2300 | X8: 150*8 | Y8: =212 -> 212 | Z8: 40 | AA8: 8480
A9: 5 | B9: 郭坚 | C9: 5230 | H9: 5230 | K9: 150*8 | L9: 66 | M9: 40 | N9: 2640 | R9: 150*8 | S9: 35 | T9: 40 | U9: 1400 | X9: 190*10 | Y9: =216 -> 216 | Z9: 52 | AA9: 11232
A10: 6 | B10: 彭军民 | C10: 5230 | H10: 5230 | K10: 190*10 | L10: 72 | M10: 52 | N10: 3744 | R10: 190*10 | S10: 115 | T10: 52 | U10: 5980 | X10: 190*12 | Y10: =84 -> 84 | Z10: 62 | AA10: 5208
A11: 7 | B11: 汤新河 | C11: 5230 | H11: 5230 | K11: 190*12 | L11: 15 | M11: 62 | N11: 930 | R11: 190*12 | S11: 75 | T11: 62 | U11: 4650 | X11: 190*12 | Z11: 82 | AA11: 0
A12: 8 | B12: 李新建 | C12: 5230 | H12: 5230 | J12: 接 | K12: 190*12 | L12: 5 | M12: 82 | N12: 410 | Q12: 接 | R12: 190*12 | S12: 10 | T12: 82 | U12: 820 | X12: 230*12 | Z12: 82 | AA12: 0
K13: 230*12 | L13: 5 | M13: 82 | N13: 410 | R13: 230*12 | S13: 12 | T13: 82 | U13: 984 | X13: 230*15 | Z13: 115 | AA13: 0
N14: =SUM(N8:N13) -> 11009 | U14: =SUM(U8:U13) -> 16134 | X14: 230*18 | Z14: 135 | AA14: 0
L15: 4 | N15: =N14/L15 -> 2752.25 | S15: 4 | U15: =U14/S15 -> 4033.5 | X15: 190*18 | Z15: 130 | AA15: 0
AA16: =SUM(AA7:AA15) -> 24920
AA17: 4
B18: 合计 | C18: =SUM(C5:C17) -> 35920 | H18: =SUM(H5:H17) -> 35920 | AA18: =AA16/AA17 -> 6230
G23: 制表：谢慧

Sheet 2021-10
A1: 工资表
A2: 单位：湘潭典诚 | H2: 月份：2021.10
A3: 序号 | B3: 姓名 | C3: 基本工资 | D3: 应扣工资 | G3: 加班补助 | H3: 实发工资 | I3: 备注
D4: 缺勤 | E4: 事假 | F4: 病假
A5: 1 | B5: 余新宇 | C5: 4500 | H5: =C5 -> 4500
A6: 2 | B6: 刘国英 | C6: 4500 | H6: 4500 | Y6: 数量 | Z6: 单价 | AA6: 金额
A7: 3 | B7: 谢慧 | C7: 1800 | H7: 1800 | X7: 190*15 | Z7: 115 | AA7: =Y7*Z7 -> 0
A8: 4 | B8: 余典 | C8: 4200 | H8: 4200 | K8: 190*15 | L8: 25 | M8: 115 | N8: =L8*M8 -> 2875 | R8: 190*15 | S8: 20 | T8: 115 | U8: =S8*T8 -> 2300 | X8: 150*8 | Y8: 50 | Z8: 40 | AA8: 2000
A9: 5 | B9: 郭坚 | C9: 4086 | H9: 4086 | K9: 150*8 | L9: 66 | M9: 40 | N9: 2640 | R9: 150*8 | S9: 35 | T9: 40 | U9: 1400 | X9: 190*10 | Y9: 60 | Z9: 52 | AA9: 3120
A10: 6 | B10: 彭军民 | C10: 4086 | H10: 4086 | K10: 190*10 | L10: 72 | M10: 52 | N10: 3744 | R10: 190*10 | S10: 115 | T10: 52 | U10: 5980 | X10: 190*12 | Y10: 120 | Z10: 62 | AA10: 7440
A11: 7 | B11: 汤新河 | C11: 4086 | H11: 4086 | K11: 190*12 | L11: 15 | M11: 62 | N11: 930 | R11: 190*12 | S11: 75 | T11: 62 | U11: 4650 | X11: 190*12 | Z11: 82 | AA11: 0
A12: 8 | B12: 李新建 | C12: 4086 | H12: 4086 | J12: 接 | K12: 190*12 | L12: 5 | M12: 82 | N12: 410 | Q12: 接 | R12: 190*12 | S12: 10 | T12: 82 | U12: 820 | X12: 230*12 | Y12: 20 | Z12: 82 | AA12: 1640
K13: 230*12 | L13: 5 | M13: 82 | N13: 410 | R13: 230*12 | S13: 12 | T13: 82 | U13: 984 | X13: 230*15 | Y13: 5 | Z13: 115 | AA13: 575
N14: =SUM(N8:N13) -> 11009 | U14: =SUM(U8:U13) -> 16134 | X14: 230*18 | Y14: 2 | Z14: 135 | AA14: 270
L15: 4 | N15: =N14/L15 -> 2752.25 | S15: 4 | U15: =U14/S15 -> 4033.5 | X15: 190*18 | Y15: 10 | Z15: 130 | AA15: 1300
AA16: =SUM(AA7:AA15) -> 16345
AA17: 4
B18: 合计 | C18: =SUM(C5:C17) -> 31344 | H18: =SUM(H5:H17) -> 31344 | AA18: =AA16/AA17 -> 4086.25
G23: 制表：谢慧

Sheet 2021-11
A1: 工资表
A2: 单位：湘潭典诚 | H2: 月份：2021.11
A3: 序号 | B3: 姓名 | C3: 基本工资 | D3: 应扣工资 | G3: 加班补助 | H3: 实发工资 | I3: 备注
D4: 缺勤 | E4: 事假 | F4: 病假
A5: 1 | B5: 余新宇 | C5: 4500 | H5: =C5 -> 4500
A6: 2 | B6: 刘国英 | C6: 4500 | H6: 4500 | Y6: 数量 | Z6: 单价 | AA6: 金额
A7: 3 | B7: 谢慧 | C7: 1800 | H7: 1800 | X7: 190*15 | Z7: 115 | AA7: =Y7*Z7 -> 0
A8: 4 | B8: 余典 | C8: 4200 | H8: 4200 | K8: 190*15 | L8: 25 | M8: 115 | N8: =L8*M8 -> 2875 | R8: 190*15 | S8: 20 | T8: 115 | U8: =S8*T8 -> 2300 | X8: 150*8 | Y8: 86 | Z8: 40 | AA8: 3440
A9: 5 | B9: 郭坚 | C9: 4618 | H9: 4618 | K9: 150*8 | L9: 66 | M9: 40 | N9: 2640 | R9: 150*8 | S9: 35 | T9: 40 | U9: 1400 | X9: 190*10 | Y9: 90 | Z9: 52 | AA9: 4680
A10: 6 | B10: 彭军民 | C10: 4618 | H10: 4618 | K10: 190*10 | L10: 72 | M10: 52 | N10: 3744 | R10: 190*10 | S10: 115 | T10: 52 | U10: 5980 | X10: 190*12 | Y10: 115 | Z10: 62 | AA10: 7130
A11: 7 | B11: 汤新河 | C11: 4618 | H11: 4618 | K11: 190*12 | L11: 15 | M11: 62 | N11: 930 | R11: 190*12 | S11: 75 | T11: 62 | U11: 4650 | X11: 190*12 | Z11: 82 | AA11: 0
A12: 8 | B12: 李新建 | C12: 4618 | H12: 4618 | J12: 接 | K12: 190*12 | L12: 5 | M12: 82 | N12: 410 | Q12: 接 | R12: 190*12 | S12: 10 | T12: 82 | U12: 820 | X12: 230*12 | Z12: 82 | AA12: 0
K13: 230*12 | L13: 5 | M13: 82 | N13: 410 | R13: 230*12 | S13: 12 | T13: 82 | U13: 984 | X13: 230*15 | Y13: 28 | Z13: 115 | AA13: 3220
N14: =SUM(N8:N13) -> 11009 | U14: =SUM(U8:U13) -> 16134 | X14: 230*18 | Z14: 135 | AA14: 0
L15: 4 | N15: =N14/L15 -> 2752.25 | S15: 4 | U15: =U14/S15 -> 4033.5 | X15: 190*18 | Z15: 130 | AA15: 0
AA16: =SUM(AA7:AA15) -> 18470
AA17: 4
B18: 合计 | C18: =SUM(C5:C17) -> 33472 | H18: =SUM(H5:H17) -> 33472 | AA18: =AA16/AA17 -> 4617.5
G23: 制表：谢慧

Sheet 2021-12
A1: 工资表
A2: 单位：湘潭典诚 | H2: 月份：2021.12
A3: 序号 | B3: 姓名 | C3: 基本工资 | D3: 应扣工资 | G3: 加班补助 | H3: 实发工资 | I3: 备注
D4: 缺勤 | E4: 事假 | F4: 病假
A5: 1 | B5: 余新宇 | C5: 4500 | H5: =C5 -> 4500
A6: 2 | B6: 刘国英 | C6: 4500 | H6: 4500 | Y6: 数量 | Z6: 单价 | AA6: 金额
A7: 3 | B7: 谢慧 | C7: 1800 | H7: 1800 | X7: 190*15 | Y7: 8 | Z7: 115 | AA7: =Y7*Z7 -> 920
A8: 4 | B8: 余典 | C8: 4200 | H8: 4200 | K8: 190*15 | L8: 25 | M8: 115 | N8: =L8*M8 -> 2875 | R8: 190*15 | S8: 20 | T8: 115 | U8: =S8*T8 -> 2300 | X8: 150*8 | Z8: 40 | AA8: 0
A9: 5 | B9: 郭坚 | C9: 4300 | H9: 4300 | K9: 150*8 | L9: 66 | M9: 40 | N9: 2640 | R9: 150*8 | S9: 35 | T9: 40 | U9: 1400 | X9: 190*10 | Z9: 52 | AA9: 0
A10: 6 | B10: 汤新河 | C10: 4300 | H10: 4300 | K10: 190*10 | L10: 72 | M10: 52 | N10: 3744 | R10: 190*10 | S10: 115 | T10: 52 | U10: 5980 | X10: 190*12 | Y10: 196 | Z10: 62 | AA10: 12152
A11: 7 | B11: 李新建 | C11: 4300 | H11: 4300 | K11: 190*12 | L11: 15 | M11: 62 | N11: 930 | R11: 190*12 | S11: 75 | T11: 62 | U11: 4650 | X11: 190*12 | Z11: 82 | AA11: 0
J12: 接 | K12: 190*12 | L12: 5 | M12: 82 | N12: 410 | Q12: 接 | R12: 190*12 | S12: 10 | T12: 82 | U12: 820 | X12: 230*12 | Z12: 82 | AA12: 0
K13: 230*12 | L13: 5 | M13: 82 | N13: 410 | R13: 230*12 | S13: 12 | T13: 82 | U13: 984 | X13: 230*15 | Z13: 115 | AA13: 0
N14: =SUM(N8:N13) -> 11009 | U14: =SUM(U8:U13) -> 16134 | X14: 230*18 | Z14: 135 | AA14: 0
L15: 4 | N15: =N14/L15 -> 2752.25 | S15: 4 | U15: =U14/S15 -> 4033.5 | X15: 190*18 | Y15: 1 | Z15: 130 | AA15: 130
AA16: =SUM(AA7:AA15) -> 13202
AA17: 4
B18: 合计 | C18: =SUM(C5:C17) -> 27900 | H18: =SUM(H5:H17) -> 27900 | AA18: =AA16/AA17 -> 3300.5
G23: 制表：谢慧

Sheet 2022-01
A1: 工资表
A2: 单位：湘潭典诚 | H2: 月份：2022.01
A3: 序号 | B3: 姓名 | C3: 基本工资 | D3: 应扣工资 | G3: 加班补助 | H3: 实发工资 | I3: 备注
D4: 缺勤 | E4: 事假 | F4: 病假
A5: 1 | B5: 余新宇 | C5: 4500 | H5: =C5 -> 4500
A6: 2 | B6: 刘国英 | C6: 4500 | H6: 4500 | Y6: 数量 | Z6: 单价 | AA6: 金额
A7: 3 | B7: 谢慧 | C7: 1800 | H7: 1800 | X7: 190*15 | Y7: 8 | Z7: 115 | AA7: =Y7*Z7 -> 920
A8: 4 | B8: 余典 | C8: 4200 | H8: 4200 | K8: 190*15 | L8: 25 | M8: 115 | N8: =L8*M8 -> 2875 | R8: 190*15 | S8: 20 | T8: 115 | U8: =S8*T8 -> 2300 | X8: 150*8 | Z8: 40 | AA8: 0
A9: 5 | B9: 郭坚 | C9: 4300 | H9: 4300 | K9: 150*8 | L9: 66 | M9: 40 | N9: 2640 | R9: 150*8 | S9: 35 | T9: 40 | U9: 1400 | X9: 190*10 | Z9: 52 | AA9: 0
A10: 6 | B10: 汤新河 | C10: 4300 | H10: 4300 | K10: 190*10 | L10: 72 | M10: 52 | N10: 3744 | R10: 190*10 | S10: 115 | T10: 52 | U10: 5980 | X10: 190*12 | Y10: 196 | Z10: 62 | AA10: 12152
A11: 7 | B11: 李新建 | C11: 4300 | H11: 4300 | K11: 190*12 | L11: 15 | M11: 62 | N11: 930 | R11: 190*12 | S11: 75 | T11: 62 | U11: 4650 | X11: 190*12 | Z11: 82 | AA11: 0
J12: 接 | K12: 190*12 | L12: 5 | M12: 82 | N12: 410 | Q12: 接 | R12: 190*12 | S12: 10 | T12: 82 | U12: 820 | X12: 230*12 | Z12: 82 | AA12: 0
K13: 230*12 | L13: 5 | M13: 82 | N13: 410 | R13: 230*12 | S13: 12 | T13: 82 | U13: 984 | X13: 230*15 | Z13: 115 | AA13: 0
N14: =SUM(N8:N13) -> 11009 | U14: =SUM(U8:U13) -> 16134 | X14: 230*18 | Z14: 135 | AA14: 0
L15: 4 | N15: =N14/L15 -> 2752.25 | S15: 4 | U15: =U14/S15 -> 4033.5 | X15: 190*18 | Y15: 1 | Z15: 130 | AA15: 130
AA16: =SUM(AA7:AA15) -> 13202
AA17: 4
B18: 合计 | C18: =SUM(C5:C17) -> 27900 | H18: =SUM(H5:H17) -> 27900 | AA18: =AA16/AA17 -> 3300.5
G23: 制表：谢慧

Sheet 2022-02
A1: 工资表
A2: 单位：湘潭典诚 | H2: 月份：2022.02
A3: 序号 | B3: 姓名 | C3: 基本工资 | D3: 应扣工资 | G3: 加班补助 | H3: 实发工资 | I3: 备注
D4: 缺勤 | E4: 事假 | F4: 病假
A5: 1 | B5: 余新宇 | C5: 4500 | H5: =C5 -> 4500
A6: 2 | B6: 刘国英 | C6: 4500 | H6: 4500 | Y6: 数量 | Z6: 单价 | AA6: 金额
A7: 3 | B7: 谢慧 | C7: 1800 | H7: 1800 | X7: 190*15 | Y7: 8 | Z7: 115 | AA7: =Y7*Z7 -> 920
A8: 4 | B8: 余典 | C8: 4200 | H8: 4200 | K8: 190*15 | L8: 25 | M8: 115 | N8: =L8*M8 -> 2875 | R8: 190*15 | S8: 20 | T8: 115 | U8: =S8*T8 -> 2300 | X8: 150*8 | Y8: 86 | Z8: 40 | AA8: 3440
A9: 5 | B9: 郭坚 | C9: 4160.5 | H9: 4160.5 | K9: 150*8 | L9: 66 | M9: 40 | N9: 2640 | R9: 150*8 | S9: 35 | T9: 40 | U9: 1400 | X9: 190*10 | Z9: 52 | AA9: 0
A10: 6 | B10: 汤新河 | C10: 4160.5 | H10: 4160.5 | K10: 190*10 | L10: 72 | M10: 52 | N10: 3744 | R10: 190*10 | S10: 115 | T10: 52 | U10: 5980 | X10: 190*12 | Y10: 196 | Z10: 62 | AA10: 12152
A11: 7 | B11: 李新建 | C11: 4160.5 | H11: 4160.5 | K11: 190*12 | L11: 15 | M11: 62 | N11: 930 | R11: 190*12 | S11: 75 | T11: 62 | U11: 4650 | X11: 190*12 | Z11: 82 | AA11: 0
J12: 接 | K12: 190*12 | L12: 5 | M12: 82 | N12: 410 | Q12: 接 | R12: 190*12 | S12: 10 | T12: 82 | U12: 820 | X12: 230*12 | Z12: 82 | AA12: 0
K13: 230*12 | L13: 5 | M13: 82 | N13: 410 | R13: 230*12 | S13: 12 | T13: 82 | U13: 984 | X13: 230*15 | Z13: 115 | AA13: 0
N14: =SUM(N8:N13) -> 11009 | U14: =SUM(U8:U13) -> 16134 | X14: 230*18 | Z14: 135 | AA14: 0
L15: 4 | N15: =N14/L15 -> 2752.25 | S15: 4 | U15: =U14/S15 -> 4033.5 | X15: 190*18 | Y15: 1 | Z15: 130 | AA15: 130
AA16: =SUM(AA7:AA15) -> 16642
AA17: 4
B18: 合计 | C18: =SUM(C5:C17) -> 27481.5 | H18: =SUM(H5:H17) -> 27481.5 | AA18: =AA16/AA17 -> 4160.5
G23: 制表：谢慧

Sheet 2022-03
A1: 工资表
A2: 单位：湘潭典诚 | H2: 月份：2022.03
A3: 序号 | B3: 姓名 | C3: 基本工资 | D3: 应扣工资 | G3: 加班补助 | H3: 实发工资 | I3: 备注
D4: 缺勤 | E4: 事假 | F4: 病假
A5: 1 | B5: 余新宇 | C5: 4500 | H5: =C5 -> 4500
A6: 2 | B6: 刘国英 | C6: 4500 | H6: 4500 | Y6: 数量 | Z6: 单价 | AA6: 金额
A7: 3 | B7: 谢慧 | C7: 1800 | H7: 1800 | X7: 190*15 | Y7: 10 | Z7: 115 | AA7: =Y7*Z7 -> 1150
A8: 4 | B8: 余典 | C8: 4200 | H8: 4200 | K8: 190*15 | L8: 25 | M8: 115 | N8: =L8*M8 -> 2875 | R8: 190*15 | S8: 20 | T8: 115 | U8: =S8*T8 -> 2300 | X8: 150*8 | Y8: 86 | Z8: 40 | AA8: 3440
A9: 5 | B9: 郭坚 | C9: 4218 | H9: 4218 | K9: 150*8 | L9: 66 | M9: 40 | N9: 2640 | R9: 150*8 | S9: 35 | T9: 40 | U9: 1400 | X9: 190*10 | Z9: 52 | AA9: 0
A10: 6 | B10: 汤新河 | C10: 4218 | H10: 4218 | K10: 190*10 | L10: 72 | M10: 52 | N10: 3744 | R10: 190*10 | S10: 115 | T10: 52 | U10: 5980 | X10: 190*12 | Y10: 196 | Z10: 62 | AA10: 12152
A11: 7 | B11: 李新建 | C11: 4218 | H11: 4218 | K11: 190*12 | L11: 15 | M11: 62 | N11: 930 | R11: 190*12 | S11: 75 | T11: 62 | U11: 4650 | X11: 190*12 | Z11: 82 | AA11: 0
J12: 接 | K12: 190*12 | L12: 5 | M12: 82 | N12: 410 | Q12: 接 | R12: 190*12 | S12: 10 | T12: 82 | U12: 820 | X12: 230*12 | Z12: 82 | AA12: 0
K13: 230*12 | L13: 5 | M13: 82 | N13: 410 | R13: 230*12 | S13: 12 | T13: 82 | U13: 984 | X13: 230*15 | Z13: 115 | AA13: 0
N14: =SUM(N8:N13) -> 11009 | U14: =SUM(U8:U13) -> 16134 | X14: 230*18 | Z14: 135 | AA14: 0
L15: 4 | N15: =N14/L15 -> 2752.25 | S15: 4 | U15: =U14/S15 -> 4033.5 | X15: 190*18 | Y15: 1 | Z15: 130 | AA15: 130
AA16: =SUM(AA7:AA15) -> 16872
AA17: 4
B18: 合计 | C18: =SUM(C5:C17) -> 27654 | H18: =SUM(H5:H17) -> 27654 | AA18: =AA16/AA17 -> 4218
G23: 制表：谢慧

Sheet 2022-04
A1: 工资表
A2: 单位：湘潭典诚 | H2: 月份：2022.04
A3: 序号 | B3: 姓名 | C3: 基本工资 | D3: 应扣工资 | G3: 加班补助 | H3: 实发工资 | I3: 备注
D4: 缺勤 | E4: 事假 | F4: 病假
A5: 1 | B5: 余新宇 | C5: 4500 | H5: =C5 -> 4500
A6: 2 | B6: 刘国英 | C6: 4500 | H6: 4500 | Y6: 数量 | Z6: 单价 | AA6: 金额
A7: 3 | B7: 谢慧 | C7: 1800 | H7: 1800 | X7: 190*15 | Y7: 10 | Z7: 115 | AA7: =Y7*Z7 -> 1150
A8: 4 | B8: 余典 | C8: 4200 | H8: 4200 | K8: 190*15 | L8: 25 | M8: 115 | N8: =L8*M8 -> 2875 | R8: 190*15 | S8: 20 | T8: 115 | U8: =S8*T8 -> 2300 | X8: 150*8 | Y8: 86 | Z8: 40 | AA8: 3440
A9: 5 | B9: 刘松林 | C9: 3045 | H9: 3045 | K9: 150*8 | L9: 66 | M9: 40 | N9: 2640 | R9: 150*8 | S9: 35 | T9: 40 | U9: 1400 | V9: 430321196110221513 | W9: 13873263948 | X9: 190*10 | Y9: 20 | Z9: 52 | AA9: 1040
A10: 6 | B10: 潘夏阳 | C10: 3045 | H10: 3045 | K10: 190*10 | L10: 72 | M10: 52 | N10: 3744 | R10: 190*10 | S10: 115 | T10: 52 | U10: 5980 | V10: 430321196205061516 | W10: 13875222513 | X10: 190*12 | Y10: 30 | Z10: 62 | AA10: 1860
A11: 7 | B11: 陈勇强 | C11: 3045 | H11: 3045 | K11: 190*12 | L11: 15 | M11: 62 | N11: 930 | R11: 190*12 | S11: 75 | T11: 62 | U11: 4650 | V11: 430321196501151516 | W11: 13875232146 | X11: 190*12 | Y11: 30 | Z11: 82 | AA11: 2460
A12: 8 | B12: 刘菜良 | C12: 3045 | H12: 3045 | J12: 接 | K12: 190*12 | L12: 5 | M12: 82 | N12: 410 | Q12: 接 | R12: 190*12 | S12: 10 | T12: 82 | U12: 820 | V12: 430321195712041515 | W12: 13487322343 | X12: 230*12 | Y12: 10 | Z12: 82 | AA12: 820
A13: 9 | B13: 郭文亮 | C13: 3045 | H13: 3045 | K13: 230*12 | L13: 5 | M13: 82 | N13: 410 | R13: 230*12 | S13: 12 | T13: 82 | U13: 984 | V13: 430321197108091515 | W13: 15073287599 | X13: 230*15 | Y13: 10 | Z13: 115 | AA13: 1150
N14: =SUM(N8:N13) -> 11009 | U14: =SUM(U8:U13) -> 16134 | X14: 230*18 | Y14: 1 | Z14: 135 | AA14: 135
L15: 4 | N15: =N14/L15 -> 2752.25 | S15: 4 | U15: =U14/S15 -> 4033.5 | X15: 190*18 | Y15: 1 | Z15: 130 | AA15: 130
AA16: =SUM(AA7:AA15) -> 12185
AA17: 4
B18: 合计 | C18: =SUM(C5:C17) -> 30225 | H18: =SUM(H5:H17) -> 30225 | AA18: =AA16/AA17 -> 3046.25
G23: 制表：谢慧

Sheet 2022-05
A1: 工资表
A2: 单位：湘潭典诚 | H2: 月份：2022.05
A3: 序号 | B3: 姓名 | C3: 基本工资 | D3: 应扣工资 | G3: 加班补助 | H3: 实发工资 | I3: 备注
D4: 缺勤 | E4: 事假 | F4: 病假
A5: 1 | B5: 余新宇 | C5: 4500 | H5: =C5 -> 4500
A6: 2 | B6: 刘国英 | C6: 4500 | H6: 4500 | Y6: 数量 | Z6: 单价 | AA6: 金额
A7: 3 | B7: 谢慧 | C7: 1800 | H7: 1800 | X7: 190*15 | Y7: 10 | Z7: 115 | AA7: =Y7*Z7 -> 1150
A8: 4 | B8: 余典 | C8: 4200 | H8: 4200 | K8: 190*15 | L8: 25 | M8: 115 | N8: =L8*M8 -> 2875 | R8: 190*15 | S8: 20 | T8: 115 | U8: =S8*T8 -> 2300 | X8: 150*8 | Y8: 86 | Z8: 40 | AA8: 3440
A9: 5 | B9: 刘松林 | C9: 4370 | H9: 4370 | K9: 150*8 | L9: 66 | M9: 40 | N9: 2640 | R9: 150*8 | S9: 35 | T9: 40 | U9: 1400 | V9: 430321196110221513 | W9: 13873263948 | X9: 190*10 | Y9: 20 | Z9: 52 | AA9: 1040
A10: 6 | B10: 潘夏阳 | C10: 4370 | H10: 4370 | K10: 190*10 | L10: 72 | M10: 52 | N10: 3744 | R10: 190*10 | S10: 115 | T10: 52 | U10: 5980 | V10: 430321196205061516 | W10: 13875222513 | X10: 190*12 | Y10: 30 | Z10: 62 | AA10: 1860
A11: 7 | B11: 陈勇强 | C11: 4370 | H11: 4370 | K11: 190*12 | L11: 15 | M11: 62 | N11: 930 | R11: 190*12 | S11: 75 | T11: 62 | U11: 4650 | V11: 430321196501151516 | W11: 13875232146 | X11: 190*12 | Y11: 30 | Z11: 82 | AA11: 2460
A12: 8 | B12: 刘菜良 | C12: 4370 | H12: 4370 | J12: 接 | K12: 190*12 | L12: 5 | M12: 82 | N12: 410 | Q12: 接 | R12: 190*12 | S12: 10 | T12: 82 | U12: 820 | V12: 430321195712041515 | W12: 13487322343 | X12: 230*12 | Y12: 10 | Z12: 82 | AA12: 820
A13: 9 | B13: 郭文亮 | C13: 4370 | H13: 4370 | K13: 230*12 | L13: 5 | M13: 82 | N13: 410 | R13: 230*12 | S13: 12 | T13: 82 | U13: 984 | V13: 430321197108091515 | W13: 15073287599 | X13: 230*15 | Y13: 10 | Z13: 115 | AA13: 1150
N14: =SUM(N8:N13) -> 11009 | U14: =SUM(U8:U13) -> 16134 | X14: 230*18 | Y14: 1 | Z14: 135 | AA14: 135
L15: 4 | N15: =N14/L15 -> 2752.25 | S15: 4 | U15: =U14/S15 -> 4033.5 | X15: 190*18 | Y15: 1 | Z15: 130 | AA15: 130
AA16: =SUM(AA7:AA15) -> 12185
AA17: 4
B18: 合计 | C18: =SUM(C5:C17) -> 36850 | H18: =SUM(H5:H17) -> 36850 | AA18: =AA16/AA17 -> 3046.25
G23: 制表：谢慧

Sheet 2022-06
A1: 工资表
A2: 单位：湘潭典诚 | H2: 月份：2022.06
A3: 序号 | B3: 姓名 | C3: 基本工资 | D3: 应扣工资 | G3: 加班补助 | H3: 实发工资 | I3: 备注
D4: 缺勤 | E4: 事假 | F4: 病假
A5: 1 | B5: 余新宇 | C5: 4500 | H5: =C5 -> 4500
A6: 2 | B6: 刘国英 | C6: 4500 | H6: 4500 | Y6: 数量 | Z6: 单价 | AA6: 金额
A7: 3 | B7: 谢慧 | C7: 1800 | H7: 1800 | X7: 190*15 | Y7: 10 | Z7: 115 | AA7: =Y7*Z7 -> 1150
A8: 4 | B8: 余典 | C8: 4200 | H8: 4200 | K8: 190*15 | L8: 25 | M8: 115 | N8: =L8*M8 -> 2875 | R8: 190*15 | S8: 20 | T8: 115 | U8: =S8*T8 -> 2300 | X8: 150*8 | Y8: 86 | Z8: 40 | AA8: 3440
A9: 5 | B9: 刘松林 | C9: 3580 | H9: 3580 | K9: 150*8 | L9: 66 | M9: 40 | N9: 2640 | R9: 150*8 | S9: 35 | T9: 40 | U9: 1400 | V9: 430321196110221513 | W9: 13873263948 | X9: 190*10 | Y9: 20 | Z9: 52 | AA9: 1040
A10: 6 | B10: 潘夏阳 | C10: 3580 | H10: 3580 | K10: 190*10 | L10: 72 | M10: 52 | N10: 3744 | R10: 190*10 | S10: 115 | T10: 52 | U10: 5980 | V10: 430321196205061516 | W10: 13875222513 | X10: 190*12 | Y10: 30 | Z10: 62 | AA10: 1860
A11: 7 | B11: 陈勇强 | C11: 3580 | H11: 3580 | K11: 190*12 | L11: 15 | M11: 62 | N11: 930 | R11: 190*12 | S11: 75 | T11: 62 | U11: 4650 | V11: 430321196501151516 | W11: 13875232146 | X11: 190*12 | Y11: 30 | Z11: 82 | AA11: 2460
A12: 8 | B12: 刘菜良 | C12: 3580 | H12: 3580 | J12: 接 | K12: 190*12 | L12: 5 | M12: 82 | N12: 410 | Q12: 接 | R12: 190*12 | S12: 10 | T12: 82 | U12: 820 | V12: 430321195712041515 | W12: 13487322343 | X12: 230*12 | Y12: 10 | Z12: 82 | AA12: 820
A13: 9 | B13: 郭文亮 | C13: 3580 | H13: 3580 | K13: 230*12 | L13: 5 | M13: 82 | N13: 410 | R13: 230*12 | S13: 12 | T13: 82 | U13: 984 | V13: 430321197108091515 | W13: 15073287599 | X13: 230*15 | Y13: 10 | Z13: 115 | AA13: 1150
N14: =SUM(N8:N13) -> 11009 | U14: =SUM(U8:U13) -> 16134 | X14: 230*18 | Y14: 1 | Z14: 135 | AA14: 135
L15: 4 | N15: =N14/L15 -> 2752.25 | S15: 4 | U15: =U14/S15 -> 4033.5 | X15: 190*18 | Y15: 1 | Z15: 130 | AA15: 130
AA16: =SUM(AA7:AA15) -> 12185
AA17: 4
B18: 合计 | C18: =SUM(C5:C17) -> 32900 | H18: =SUM(H5:H17) -> 32900 | AA18: =AA16/AA17 -> 3046.25
G23: 制表：谢慧

Sheet 2022-07
A1: 工资表
A2: 单位：湘潭典诚 | H2: 月份：2022.07
A3: 序号 | B3: 姓名 | C3: 基本工资 | D3: 应扣工资 | G3: 加班补助 | H3: 实发工资 | I3: 备注
D4: 缺勤 | E4: 事假 | F4: 病假
A5: 1 | B5: 余新宇 | C5: 4500 | H5: =C5 -> 4500
A6: 2 | B6: 刘国英 | C6: 4500 | H6: 4500 | Y6: 数量 | Z6: 单价 | AA6: 金额
A7: 3 | B7: 谢慧 | C7: 1800 | H7: 1800 | X7: 190*15 | Y7: 10 | Z7: 115 | AA7: =Y7*Z7 -> 1150
A8: 4 | B8: 余典 | C8: 4200 | H8: 4200 | K8: 190*15 | L8: 25 | M8: 50 | N8: =L8*M8 -> 1250 | R8: 190*15 | S8: 20 | T8: 115 | U8: =S8*T8 -> 2300 | X8: 150*8 | Y8: 86 | Z8: 40 | AA8: 3440
A9: 5 | B9: 刘松林 | C9: 4240 | H9: 4240 | K9: 150*8 | L9: 66 | M9: 180 | N9: 11880 | R9: 150*8 | S9: 35 | T9: 40 | U9: 1400 | V9: 430321196110221513 | W9: 13873263948 | X9: 190*10 | Y9: 20 | Z9: 52 | AA9: 1040
A10: 6 | B10: 潘夏阳 | C10: 4240 | H10: 4240 | K10: 190*10 | L10: 72 | M10: 100 | N10: 7200 | R10: 190*10 | S10: 115 | T10: 52 | U10: 5980 | V10: 430321196205061516 | W10: 13875222513 | X10: 190*12 | Y10: 30 | Z10: 62 | AA10: 1860
A11: 7 | B11: 陈勇强 | C11: 4240 | H11: 4240 | K11: 190*12 | L11: 15 | M11: 30 | N11: 450 | R11: 190*12 | S11: 75 | T11: 62 | U11: 4650 | V11: 430321196501151516 | W11: 13875232146 | X11: 190*12 | Y11: 30 | Z11: 82 | AA11: 2460
A12: 8 | B12: 刘菜良 | C12: 4240 | H12: 4240 | J12: 接 | K12: 190*12 | L12: 5 | M12: 25 | N12: 125 | Q12: 接 | R12: 190*12 | S12: 10 | T12: 82 | U12: 820 | V12: 430321195712041515 | W12: 13487322343 | X12: 230*12 | Y12: 10 | Z12: 82 | AA12: 820
A13: 9 | B13: 郭文亮 | C13: 4240 | H13: 4240 | K13: 230*12 | L13: 5 | M13: 12 | N13: 60 | R13: 230*12 | S13: 12 | T13: 82 | U13: 984 | V13: 430321197108091515 | W13: 15073287599 | X13: 230*15 | Y13: 10 | Z13: 115 | AA13: 1150
N14: =SUM(N8:N13) -> 20965 | U14: =SUM(U8:U13) -> 16134 | X14: 230*18 | Y14: 1 | Z14: 135 | AA14: 135
L15: 4 | N15: =N14/L15 -> 5241.25 | S15: 4 | U15: =U14/S15 -> 4033.5 | X15: 190*18 | Y15: 1 | Z15: 130 | AA15: 130
AA16: =SUM(AA7:AA15) -> 12185
AA17: 4
B18: 合计 | C18: =SUM(C5:C17) -> 36200 | H18: =SUM(H5:H17) -> 36200 | AA18: =AA16/AA17 -> 3046.25
G23: 制表：谢慧

Sheet 2022-08
A1: 工资表
A2: 单位：湘潭典诚 | H2: 月份：2022.08
A3: 序号 | B3: 姓名 | C3: 基本工资 | D3: 应扣工资 | G3: 加班补助 | H3: 实发工资 | I3: 备注
D4: 缺勤 | E4: 事假 | F4: 病假
A5: 1 | B5: 余新宇 | C5: 4500 | H5: =C5 -> 4500
A6: 2 | B6: 刘国英 | C6: 4500 | H6: 4500 | Y6: 数量 | Z6: 单价 | AA6: 金额
A7: 3 | B7: 谢慧 | C7: 1800 | H7: 1800 | X7: 190*15 | Y7: 10 | Z7: 115 | AA7: =Y7*Z7 -> 1150
A8: 4 | B8: 余典 | C8: 4200 | H8: 4200 | K8: 190*15 | L8: 25 | M8: 50 | N8: =L8*M8 -> 1250 | R8: 190*15 | S8: 20 | T8: 115 | U8: =S8*T8 -> 2300 | X8: 150*8 | Y8: 86 | Z8: 40 | AA8: 3440
A9: 5 | B9: 刘松林 | C9: 4521 | H9: 4521 | K9: 150*8 | L9: 50 | M9: 180 | N9: 9000 | R9: 150*8 | S9: 35 | T9: 40 | U9: 1400 | V9: 430321196110221513 | W9: 13873263948 | X9: 190*10 | Y9: 20 | Z9: 52 | AA9: 1040
A10: 6 | B10: 潘夏阳 | C10: 4521 | H10: 4521 | K10: 190*10 | L10: 72 | M10: 100 | N10: 7200 | R10: 190*10 | S10: 115 | T10: 52 | U10: 5980 | V10: 430321196205061516 | W10: 13875222513 | X10: 190*12 | Y10: 30 | Z10: 62 | AA10: 1860
A11: 7 | B11: 陈勇强 | C11: 4521 | H11: 4521 | K11: 190*12 | L11: 15 | M11: 30 | N11: 450 | R11: 190*12 | S11: 75 | T11: 62 | U11: 4650 | V11: 430321196501151516 | W11: 13875232146 | X11: 190*12 | Y11: 30 | Z11: 82 | AA11: 2460
A12: 8 | B12: 刘菜良 | C12: 4521 | H12: 4521 | J12: 接 | K12: 190*12 | L12: 5 | M12: 25 | N12: 125 | Q12: 接 | R12: 190*12 | S12: 10 | T12: 82 | U12: 820 | V12: 430321195712041515 | W12: 13487322343 | X12: 230*12 | Y12: 10 | Z12: 82 | AA12: 820
A13: 9 | B13: 郭文亮 | C13: 4521 | H13: 4521 | K13: 230*12 | L13: 5 | M13: 12 | N13: 60 | R13: 230*12 | S13: 12 | T13: 82 | U13: 984 | V13: 430321197108091515 | W13: 15073287599 | X13: 230*15 | Y13: 10 | Z13: 115 | AA13: 1150
N14: =SUM(N8:N13) -> 18085 | U14: =SUM(U8:U13) -> 16134 | X14: 230*18 | Y14: 1 | Z14: 135 | AA14: 135
L15: 4 | N15: =N14/L15 -> 4521.25 | S15: 4 | U15: =U14/S15 -> 4033.5 | X15: 190*18 | Y15: 1 | Z15: 130 | AA15: 130
AA16: =SUM(AA7:AA15) -> 12185
AA17: 4
B18: 合计 | C18: =SUM(C5:C17) -> 37605 | H18: =SUM(H5:H17) -> 37605 | AA18: =AA16/AA17 -> 3046.25
G23: 制表：谢慧

Sheet 2022-09
A1: 工资表
A2: 单位：湘潭典诚 | H2: 月份：2022.09
A3: 序号 | B3: 姓名 | C3: 基本工资 | D3: 应扣工资 | G3: 加班补助 | H3: 实发工资 | I3: 备注
D4: 缺勤 | E4: 事假 | F4: 病假
A5: 1 | B5: 余新宇 | C5: 4500 | H5: =C5 -> 4500
A6: 2 | B6: 刘国英 | C6: 4500 | H6: 4500 | Y6: 数量 | Z6: 单价 | AA6: 金额
A7: 3 | B7: 谢慧 | C7: 1800 | H7: 1800 | X7: 190*15 | Y7: 10 | Z7: 115 | AA7: =Y7*Z7 -> 1150
A8: 4 | B8: 余典 | C8: 4200 | H8: 4200 | K8: 190*15 | L8: 25 | M8: 50 | N8: =L8*M8 -> 1250 | R8: 190*15 | S8: 20 | T8: 115 | U8: =S8*T8 -> 2300 | X8: 150*8 | Y8: 86 | Z8: 40 | AA8: 3440
A9: 5 | B9: 刘松林 | C9: 4883 | H9: 4883 | K9: 150*8 | L9: 50 | M9: 180 | N9: 9000 | R9: 150*8 | S9: 35 | T9: 40 | U9: 1400 | V9: 430321196110221513 | W9: 13873263948 | X9: 190*10 | Y9: 20 | Z9: 52 | AA9: 1040
A10: 6 | B10: 潘夏阳 | C10: 4883 | H10: 4883 | K10: 190*10 | L10: 85 | M10: 100 | N10: 8500 | R10: 190*10 | S10: 115 | T10: 52 | U10: 5980 | V10: 430321196205061516 | W10: 13875222513 | X10: 190*12 | Y10: 30 | Z10: 62 | AA10: 1860
A11: 7 | B11: 陈勇强 | C11: 4883 | H11: 4883 | K11: 190*12 | L11: 20 | M11: 30 | N11: 600 | R11: 190*12 | S11: 75 | T11: 62 | U11: 4650 | V11: 430321196501151516 | W11: 13875232146 | X11: 190*12 | Y11: 30 | Z11: 82 | AA11: 2460
A12: 8 | B12: 刘菜良 | C12: 4883 | H12: 4883 | J12: 接 | K12: 190*12 | L12: 5 | M12: 25 | N12: 125 | Q12: 接 | R12: 190*12 | S12: 10 | T12: 82 | U12: 820 | V12: 430321195712041515 | W12: 13487322343 | X12: 230*12 | Y12: 10 | Z12: 82 | AA12: 820
A13: 9 | B13: 郭文亮 | C13: 4883 | H13: 4883 | K13: 230*12 | L13: 5 | M13: 12 | N13: 60 | R13: 230*12 | S13: 12 | T13: 82 | U13: 984 | V13: 430321197108091515 | W13: 15073287599 | X13: 230*15 | Y13: 10 | Z13: 115 | AA13: 1150
N14: =SUM(N8:N13) -> 19535 | U14: =SUM(U8:U13) -> 16134 | X14: 230*18 | Y14: 1 | Z14: 135 | AA14: 135
L15: 4 | N15: =N14/L15 -> 4883.75 | S15: 4 | U15: =U14/S15 -> 4033.5 | X15: 190*18 | Y15: 1 | Z15: 130 | AA15: 130
AA16: =SUM(AA7:AA15) -> 12185
AA17: 4
B18: 合计 | C18: =SUM(C5:C17) -> 39415 | H18: =SUM(H5:H17) -> 39415 | AA18: =AA16/AA17 -> 3046.25
G23: 制表：谢慧

Sheet 2022-10
A1: 工资表
A2: 单位：湘潭典诚 | H2: 月份：2022.10
A3: 序号 | B3: 姓名 | C3: 基本工资 | D3: 应扣工资 | G3: 加班补助 | H3: 实发工资 | I3: 备注
D4: 缺勤 | E4: 事假 | F4: 病假
A5: 1 | B5: 余新宇 | C5: 4500 | H5: =C5 -> 4500
A6: 2 | B6: 刘国英 | C6: 4500 | H6: 4500 | Y6: 数量 | Z6: 单价 | AA6: 金额
A7: 3 | B7: 谢慧 | C7: 1800 | H7: 1800 | X7: 190*15 | Y7: 10 | Z7: 115 | AA7: =Y7*Z7 -> 1150
A8: 4 | B8: 余典 | C8: 4200 | H8: 4200 | K8: 190*15 | L8: 25 | M8: 50 | N8: =L8*M8 -> 1250 | R8: 190*15 | S8: 20 | T8: 115 | U8: =S8*T8 -> 2300 | X8: 150*8 | Y8: 86 | Z8: 40 | AA8: 3440
A9: 5 | B9: 刘松林 | C9: 3520 | H9: 3520 | K9: 150*8 | L9: 50 | M9: 180 | N9: 9000 | R9: 150*8 | S9: 35 | T9: 40 | U9: 1400 | V9: 430321196110221513 | W9: 13873263948 | X9: 190*10 | Y9: 20 | Z9: 52 | AA9: 1040
A10: 6 | B10: 潘夏阳 | C10: 3520 | H10: 3520 | K10: 190*10 | L10: 85 | M10: 100 | N10: 8500 | R10: 190*10 | S10: 115 | T10: 52 | U10: 5980 | V10: 430321196205061516 | W10: 13875222513 | X10: 190*12 | Y10: 30 | Z10: 62 | AA10: 1860
A11: 7 | B11: 陈勇强 | C11: 3520 | H11: 3520 | K11: 190*12 | L11: 20 | M11: 30 | N11: 600 | R11: 190*12 | S11: 75 | T11: 62 | U11: 4650 | V11: 430321196501151516 | W11: 13875232146 | X11: 190*12 | Y11: 30 | Z11: 82 | AA11: 2460
A12: 8 | B12: 刘菜良 | C12: 3520 | H12: 3520 | J12: 接 | K12: 190*12 | L12: 5 | M12: 25 | N12: 125 | Q12: 接 | R12: 190*12 | S12: 10 | T12: 82 | U12: 820 | V12: 430321195712041515 | W12: 13487322343 | X12: 230*12 | Y12: 10 | Z12: 82 | AA12: 820
A13: 9 | B13: 郭文亮 | C13: 3520 | H13: 3520 | K13: 230*12 | L13: 5 | M13: 12 | N13: 60 | R13: 230*12 | S13: 12 | T13: 82 | U13: 984 | V13: 430321197108091515 | W13: 15073287599 | X13: 230*15 | Y13: 10 | Z13: 115 | AA13: 1150
N14: =SUM(N8:N13) -> 19535 | U14: =SUM(U8:U13) -> 16134 | X14: 230*18 | Y14: 1 | Z14: 135 | AA14: 135
L15: 4 | N15: =N14/L15 -> 4883.75 | S15: 4 | U15: =U14/S15 -> 4033.5 | X15: 190*18 | Y15: 1 | Z15: 130 | AA15: 130
AA16: =SUM(AA7:AA15) -> 12185
AA17: 4
B18: 合计 | C18: =SUM(C5:C17) -> 32600 | H18: =SUM(H5:H17) -> 32600 | AA18: =AA16/AA17 -> 3046.25
G23: 制表：谢慧

Sheet 2022-11
A1: 工资表
A2: 单位：湘潭典诚 | H2: 月份：2022.11
A3: 序号 | B3: 姓名 | C3: 基本工资 | D3: 应扣工资 | G3: 加班补助 | H3: 实发工资 | I3: 备注
D4: 缺勤 | E4: 事假 | F4: 病假
A5: 1 | B5: 余新宇 | C5: 4500 | H5: =C5 -> 4500
A6: 2 | B6: 刘国英 | C6: 4500 | H6: 4500 | Y6: 数量 | Z6: 单价 | AA6: 金额
A7: 3 | B7: 谢慧 | C7: 1800 | H7: 1800 | X7: 190*15 | Y7: 10 | Z7: 115 | AA7: =Y7*Z7 -> 1150
A8: 4 | B8: 余典 | C8: 4200 | H8: 4200 | K8: 190*15 | L8: 5 | M8: 50 | N8: =L8*M8 -> 250 | R8: 190*15 | S8: 20 | T8: 115 | U8: =S8*T8 -> 2300 | X8: 150*8 | Y8: 86 | Z8: 40 | AA8: 3440
A9: 5 | B9: 刘松林 | C9: 2930 | H9: 2930 | K9: 150*8 | L9: 50 | M9: 180 | N9: 9000 | R9: 150*8 | S9: 35 | T9: 40 | U9: 1400 | V9: 430321196110221513 | W9: 13873263948 | X9: 190*10 | Y9: 20 | Z9: 52 | AA9: 1040
A10: 6 | B10: 潘夏阳 | C10: 2930 | H10: 2930 | K10: 190*10 | L10: 20 | M10: 100 | N10: 2000 | R10: 190*10 | S10: 115 | T10: 52 | U10: 5980 | V10: 430321196205061516 | W10: 13875222513 | X10: 190*12 | Y10: 30 | Z10: 62 | AA10: 1860
A11: 7 | B11: 陈勇强 | C11: 2930 | H11: 2930 | K11: 190*12 | L11: 10 | M11: 30 | N11: 300 | R11: 190*12 | S11: 75 | T11: 62 | U11: 4650 | V11: 430321196501151516 | W11: 13875232146 | X11: 190*12 | Y11: 30 | Z11: 82 | AA11: 2460
A12: 8 | B12: 刘菜良 | C12: 2930 | H12: 2930 | J12: 接 | K12: 190*12 | L12: 5 | M12: 25 | N12: 125 | Q12: 接 | R12: 190*12 | S12: 10 | T12: 82 | U12: 820 | V12: 430321195712041515 | W12: 13487322343 | X12: 230*12 | Y12: 10 | Z12: 82 | AA12: 820
A13: 9 | B13: 郭文亮 | C13: 2930 | H13: 2930 | K13: 230*12 | L13: 5 | M13: 12 | N13: 60 | R13: 230*12 | S13: 12 | T13: 82 | U13: 984 | V13: 430321197108091515 | W13: 15073287599 | X13: 230*15 | Y13: 10 | Z13: 115 | AA13: 1150
N14: =SUM(N8:N13) -> 11735 | U14: =SUM(U8:U13) -> 16134 | X14: 230*18 | Y14: 1 | Z14: 135 | AA14: 135
L15: 4 | N15: =N14/L15 -> 2933.75 | S15: 4 | U15: =U14/S15 -> 4033.5 | X15: 190*18 | Y15: 1 | Z15: 130 | AA15: 130
AA16: =SUM(AA7:AA15) -> 12185
AA17: 4
B18: 合计 | C18: =SUM(C5:C17) -> 29650 | H18: =SUM(H5:H17) -> 29650 | AA18: =AA16/AA17 -> 3046.25
G23: 制表：谢慧

Sheet 2022-12
A1: 工资表
A2: 单位：湘潭典诚 | H2: 月份：2022.12
A3: 序号 | B3: 姓名 | C3: 基本工资 | D3: 应扣工资 | G3: 加班补助 | H3: 实发工资 | I3: 备注
D4: 缺勤 | E4: 事假 | F4: 病假
A5: 1 | B5: 余新宇 | C5: 4500 | H5: =C5 -> 4500
A6: 2 | B6: 刘国英 | C6: 4500 | H6: 4500 | Y6: 数量 | Z6: 单价 | AA6: 金额
A7: 3 | B7: 谢慧 | C7: 1800 | H7: 1800 | X7: 190*15 | Y7: 10 | Z7: 115 | AA7: =Y7*Z7 -> 1150
A8: 4 | B8: 余典 | C8: 4200 | H8: 4200 | K8: 190*15 | L8: 10 | M8: 50 | N8: =L8*M8 -> 500 | R8: 190*15 | S8: 20 | T8: 115 | U8: =S8*T8 -> 2300 | X8: 150*8 | Y8: 86 | Z8: 40 | AA8: 3440
A9: 5 | B9: 刘松林 | C9: 2511 | H9: 2511 | K9: 150*8 | L9: 30 | M9: 180 | N9: 5400 | R9: 150*8 | S9: 35 | T9: 40 | U9: 1400 | V9: 430321196110221513 | W9: 13873263948 | X9: 190*10 | Y9: 20 | Z9: 52 | AA9: 1040
A10: 6 | B10: 潘夏阳 | C10: 2511 | H10: 2511 | K10: 190*10 | L10: 22 | M10: 100 | N10: 2200 | R10: 190*10 | S10: 115 | T10: 52 | U10: 5980 | V10: 430321196205061516 | W10: 13875222513 | X10: 190*12 | Y10: 30 | Z10: 62 | AA10: 1860
A11: 7 | B11: 陈勇强 | C11: 2511 | H11: 2511 | K11: 190*12 | L11: 50 | M11: 30 | N11: 1500 | R11: 190*12 | S11: 75 | T11: 62 | U11: 4650 | V11: 430321196501151516 | W11: 13875232146 | X11: 190*12 | Y11: 30 | Z11: 82 | AA11: 2460
A12: 8 | B12: 刘菜良 | C12: 2511 | H12: 2511 | J12: 接 | K12: 190*12 | L12: 15 | M12: 25 | N12: 375 | Q12: 接 | R12: 190*12 | S12: 10 | T12: 82 | U12: 820 | V12: 430321195712041515 | W12: 13487322343 | X12: 230*12 | Y12: 10 | Z12: 82 | AA12: 820
A13: 9 | B13: 郭文亮 | C13: 2511 | H13: 2511 | K13: 230*12 | L13: 6 | M13: 12 | N13: 72 | R13: 230*12 | S13: 12 | T13: 82 | U13: 984 | V13: 430321197108091515 | W13: 15073287599 | X13: 230*15 | Y13: 10 | Z13: 115 | AA13: 1150
N14: =SUM(N8:N13) -> 10047 | U14: =SUM(U8:U13) -> 16134 | X14: 230*18 | Y14: 1 | Z14: 135 | AA14: 135
L15: 4 | N15: =N14/L15 -> 2511.75 | S15: 4 | U15: =U14/S15 -> 4033.5 | X15: 190*18 | Y15: 1 | Z15: 130 | AA15: 130
AA16: =SUM(AA7:AA15) -> 12185
AA17: 4
B18: 合计 | C18: =SUM(C5:C17) -> 27555 | H18: =SUM(H5:H17) -> 27555 | AA18: =AA16/AA17 -> 3046.25
G23: 制表：谢慧

Sheet 2023-01
A1: 工资表
A2: 单位：湘潭典诚 | H2: 月份：2023.01
A3: 序号 | B3: 姓名 | C3: 基本工资 | D3: 应扣工资 | G3: 加班补助 | H3: 实发工资 | I3: 备注
D4: 缺勤 | E4: 事假 | F4: 病假
A5: 1 | B5: 余新宇 | C5: 4500 | H5: =C5 -> 4500
A6: 2 | B6: 刘国英 | C6: 4500 | H6: 4500 | Y6: 数量 | Z6: 单价 | AA6: 金额
A7: 3 | B7: 谢慧 | C7: 1800 | H7: 1800 | X7: 190*15 | Y7: 10 | Z7: 115 | AA7: =Y7*Z7 -> 1150
A8: 4 | B8: 余典 | C8: 4200 | H8: 4200 | K8: 190*15 | L8: 10 | M8: 50 | N8: =L8*M8 -> 500 | R8: 190*15 | S8: 20 | T8: 115 | U8: =S8*T8 -> 2300 | X8: 150*8 | Y8: 86 | Z8: 40 | AA8: 3440
A9: 5 | B9: 刘松林 | C9: 1110 | H9: 1110 | K9: 150*8 | L9: 30 | M9: 180 | N9: 5400 | R9: 150*8 | S9: 35 | T9: 40 | U9: 1400 | V9: 430321196110221513 | W9: 13873263948 | X9: 190*10 | Y9: 20 | Z9: 52 | AA9: 1040
A10: 6 | B10: 潘夏阳 | C10: 1110 | H10: 1110 | K10: 190*10 | L10: 22 | M10: 100 | N10: 2200 | R10: 190*10 | S10: 115 | T10: 52 | U10: 5980 | V10: 430321196205061516 | W10: 13875222513 | X10: 190*12 | Y10: 30 | Z10: 62 | AA10: 1860
A11: 7 | B11: 陈勇强 | C11: 1110 | H11: 1110 | K11: 190*12 | L11: 50 | M11: 30 | N11: 1500 | R11: 190*12 | S11: 75 | T11: 62 | U11: 4650 | V11: 430321196501151516 | W11: 13875232146 | X11: 190*12 | Y11: 30 | Z11: 82 | AA11: 2460
A12: 8 | B12: 刘菜良 | C12: 1110 | H12: 1110 | J12: 接 | K12: 190*12 | L12: 15 | M12: 25 | N12: 375 | Q12: 接 | R12: 190*12 | S12: 10 | T12: 82 | U12: 820 | V12: 430321195712041515 | W12: 13487322343 | X12: 230*12 | Y12: 10 | Z12: 82 | AA12: 820
A13: 9 | B13: 郭文亮 | C13: 1110 | H13: 1110 | K13: 230*12 | L13: 6 | M13: 12 | N13: 72 | R13: 230*12 | S13: 12 | T13: 82 | U13: 984 | V13: 430321197108091515 | W13: 15073287599 | X13: 230*15 | Y13: 10 | Z13: 115 | AA13: 1150
N14: =SUM(N8:N13) -> 10047 | U14: =SUM(U8:U13) -> 16134 | X14: 230*18 | Y14: 1 | Z14: 135 | AA14: 135
L15: 4 | N15: =N14/L15 -> 2511.75 | S15: 4 | U15: =U14/S15 -> 4033.5 | X15: 190*18 | Y15: 1 | Z15: 130 | AA15: 130
AA16: =SUM(AA7:AA15) -> 12185
AA17: 4
B18: 合计 | C18: =SUM(C5:C17) -> 20550 | H18: =SUM(H5:H17) -> 20550 | AA18: =AA16/AA17 -> 3046.25
G23: 制表：谢慧

Sheet 2023-02
A1: 工资表
A2: 单位：湘潭典诚 | H2: 月份：2023.02
A3: 序号 | B3: 姓名 | C3: 基本工资 | D3: 应扣工资 | G3: 加班补助 | H3: 实发工资 | I3: 备注
D4: 缺勤 | E4: 事假 | F4: 病假
A5: 1 | B5: 余新宇 | C5: 4500 | H5: =C5 -> 4500
A6: 2 | B6: 刘国英 | C6: 4500 | H6: 4500 | Y6: 数量 | Z6: 单价 | AA6: 金额
A7: 3 | B7: 谢慧 | C7: 1800 | H7: 1800 | X7: 190*15 | Y7: 10 | Z7: 115 | AA7: =Y7*Z7 -> 1150
A8: 4 | B8: 余典 | C8: 4200 | H8: 4200 | K8: 190*15 | L8: 10 | M8: 50 | N8: =L8*M8 -> 500 | R8: 190*15 | S8: 20 | T8: 115 | U8: =S8*T8 -> 2300 | X8: 150*8 | Y8: 86 | Z8: 40 | AA8: 3440
A9: 5 | B9: 刘松林 | C9: 3058 | H9: 3058 | K9: 150*8 | L9: 30 | M9: 180 | N9: 5400 | R9: 150*8 | S9: 35 | T9: 40 | U9: 1400 | V9: 430321196110221513 | W9: 13873263948 | X9: 190*10 | Y9: 20 | Z9: 52 | AA9: 1040
A10: 6 | B10: 潘夏阳 | C10: 3058 | H10: 3058 | K10: 190*10 | L10: 22 | M10: 100 | N10: 2200 | R10: 190*10 | S10: 115 | T10: 52 | U10: 5980 | V10: 430321196205061516 | W10: 13875222513 | X10: 190*12 | Y10: 30 | Z10: 62 | AA10: 1860
A11: 7 | B11: 陈勇强 | C11: 3058 | H11: 3058 | K11: 190*12 | L11: 50 | M11: 30 | N11: 1500 | R11: 190*12 | S11: 75 | T11: 62 | U11: 4650 | V11: 430321196501151516 | W11: 13875232146 | X11: 190*12 | Y11: 30 | Z11: 82 | AA11: 2460
A12: 8 | B12: 刘菜良 | C12: 3058 | H12: 3058 | J12: 接 | K12: 190*12 | L12: 15 | M12: 25 | N12: 375 | Q12: 接 | R12: 190*12 | S12: 10 | T12: 82 | U12: 820 | V12: 430321195712041515 | W12: 13487322343 | X12: 230*12 | Y12: 10 | Z12: 82 | AA12: 820
A13: 9 | B13: 郭文亮 | C13: 3058 | H13: 3058 | K13: 230*12 | L13: 6 | M13: 12 | N13: 72 | R13: 230*12 | S13: 12 | T13: 82 | U13: 984 | V13: 430321197108091515 | W13: 15073287599 | X13: 230*15 | Y13: 10 | Z13: 115 | AA13: 1150
N14: =SUM(N8:N13) -> 10047 | U14: =SUM(U8:U13) -> 16134 | X14: 230*18 | Y14: 1 | Z14: 135 | AA14: 135
L15: 4 | N15: =N14/L15 -> 2511.75 | S15: 4 | U15: =U14/S15 -> 4033.5 | X15: 190*18 | Y15: 1 | Z15: 130 | AA15: 130
AA16: =SUM(AA7:AA15) -> 12185
AA17: 4
B18: 合计 | C18: =SUM(C5:C17) -> 30290 | H18: =SUM(H5:H17) -> 30290 | AA18: =AA16/AA17 -> 3046.25
G23: 制表：谢慧
